{"text_format":"3","workbook":"xlsx","n_sheets":4,"sheets":["TÓM TẮT NGÂN SÁCH TỪ ĐẦU NĂM","TÓM TẮT CHI PHÍ HÀNG THÁNG","CHI PHÍ PHÂN THEO KHOẢN MỤC","KHOẢN TỪ THIỆN & KHOẢN TÀI TRỢ"],"not_rendered":{"images":1,"defined_names":15},"read":"whole","date_system":"1900"}

{"sheet":"TÓM TẮT NGÂN SÁCH TỪ ĐẦU NĂM","index":0,"n_rows":16,"n_cols":7,"rows_kept":16,"merged":[[1,1,1,4]]}
[]
[null,"THỰC TẾ so với NGÂN SÁCH TỪ ĐẦU NĂM ĐẾN NAY",{"$nulls":3},"NĂM",{"$f":"YEAR(TODAY())","v":2019}]
[null,"Mã sổ cái","Tiêu đề tài khoản","Thực tế","Ngân sách","₫ còn lại","% còn lại"]
[null,1000,"Quảng cáo",{"$f":"SUMIF(Tóm_tắt_chi_phí_hàng_tháng[Mã sổ cái],Bảng_Đầu_năm_đến_nay[[#This Row],[Mã sổ cái]],Tóm_tắt_chi_phí_hàng_tháng[Tổng])","v":{"v":0,"d":"0.00 ₫"}},{"v":100000,"d":"100,000.00 ₫"},{"$f":"IF(Bảng_Đầu_năm_đến_nay[[#This Row],[Ngân sách]]=\"\",\"\",Bảng_Đầu_năm_đến_nay[[#This Row],[Ngân sách]]-Bảng_Đầu_năm_đến_nay[[#This Row],[Thực tế]])","v":{"v":100000,"d":"100,000.00 ₫"}},{"$f":"IFERROR(Bảng_Đầu_năm_đến_nay[[#This Row],[₫ còn lại]]/Bảng_Đầu_năm_đến_nay[[#This Row],[Ngân sách]],\"\")","v":{"v":1,"d":"100.00%"}}]
[null,2000,"Thiết bị văn phòng",{"$f":"SUMIF(Tóm_tắt_chi_phí_hàng_tháng[Mã sổ cái],Bảng_Đầu_năm_đến_nay[[#This Row],[Mã sổ cái]],Tóm_tắt_chi_phí_hàng_tháng[Tổng])","v":{"v":0,"d":"0.00 ₫"}},{"v":100000,"d":"100,000.00 ₫"},{"$f":"IF(Bảng_Đầu_năm_đến_nay[[#This Row],[Ngân sách]]=\"\",\"\",Bảng_Đầu_năm_đến_nay[[#This Row],[Ngân sách]]-Bảng_Đầu_năm_đến_nay[[#This Row],[Thực tế]])","v":{"v":100000,"d":"100,000.00 ₫"}},{"$f":"IFERROR(Bảng_Đầu_năm_đến_nay[[#This Row],[₫ còn lại]]/Bảng_Đầu_năm_đến_nay[[#This Row],[Ngân sách]],\"\")","v":{"v":1,"d":"100.00%"}}]
[null,3000,"Máy in",{"$f":"SUMIF(Tóm_tắt_chi_phí_hàng_tháng[Mã sổ cái],Bảng_Đầu_năm_đến_nay[[#This Row],[Mã sổ cái]],Tóm_tắt_chi_phí_hàng_tháng[Tổng])","v":{"v":0,"d":"0.00 ₫"}},{"v":100000,"d":"100,000.00 ₫"},{"$f":"IF(Bảng_Đầu_năm_đến_nay[[#This Row],[Ngân sách]]=\"\",\"\",Bảng_Đầu_năm_đến_nay[[#This Row],[Ngân sách]]-Bảng_Đầu_năm_đến_nay[[#This Row],[Thực tế]])","v":{"v":100000,"d":"100,000.00 ₫"}},{"$f":"IFERROR(Bảng_Đầu_năm_đến_nay[[#This Row],[₫ còn lại]]/Bảng_Đầu_năm_đến_nay[[#This Row],[Ngân sách]],\"\")","v":{"v":1,"d":"100.00%"}}]
[null,4000,"Chi phí máy chủ",{"$f":"SUMIF(Tóm_tắt_chi_phí_hàng_tháng[Mã sổ cái],Bảng_Đầu_năm_đến_nay[[#This Row],[Mã sổ cái]],Tóm_tắt_chi_phí_hàng_tháng[Tổng])","v":{"v":0,"d":"0.00 ₫"}},{"v":100000,"d":"100,000.00 ₫"},{"$f":"IF(Bảng_Đầu_năm_đến_nay[[#This Row],[Ngân sách]]=\"\",\"\",Bảng_Đầu_năm_đến_nay[[#This Row],[Ngân sách]]-Bảng_Đầu_năm_đến_nay[[#This Row],[Thực tế]])","v":{"v":100000,"d":"100,000.00 ₫"}},{"$f":"IFERROR(Bảng_Đầu_năm_đến_nay[[#This Row],[₫ còn lại]]/Bảng_Đầu_năm_đến_nay[[#This Row],[Ngân sách]],\"\")","v":{"v":1,"d":"100.00%"}}]
[null,5000,"Nhu yếu phẩm",{"$f":"SUMIF(Tóm_tắt_chi_phí_hàng_tháng[Mã sổ cái],Bảng_Đầu_năm_đến_nay[[#This Row],[Mã sổ cái]],Tóm_tắt_chi_phí_hàng_tháng[Tổng])","v":{"v":0,"d":"0.00 ₫"}},{"v":50000,"d":"50,000.00 ₫"},{"$f":"IF(Bảng_Đầu_năm_đến_nay[[#This Row],[Ngân sách]]=\"\",\"\",Bảng_Đầu_năm_đến_nay[[#This Row],[Ngân sách]]-Bảng_Đầu_năm_đến_nay[[#This Row],[Thực tế]])","v":{"v":50000,"d":"50,000.00 ₫"}},{"$f":"IFERROR(Bảng_Đầu_năm_đến_nay[[#This Row],[₫ còn lại]]/Bảng_Đầu_năm_đến_nay[[#This Row],[Ngân sách]],\"\")","v":{"v":1,"d":"100.00%"}}]
[null,6000,"Chi phí máy khách",{"$f":"SUMIF(Tóm_tắt_chi_phí_hàng_tháng[Mã sổ cái],Bảng_Đầu_năm_đến_nay[[#This Row],[Mã sổ cái]],Tóm_tắt_chi_phí_hàng_tháng[Tổng])","v":{"v":0,"d":"0.00 ₫"}},{"v":25000,"d":"25,000.00 ₫"},{"$f":"IF(Bảng_Đầu_năm_đến_nay[[#This Row],[Ngân sách]]=\"\",\"\",Bảng_Đầu_năm_đến_nay[[#This Row],[Ngân sách]]-Bảng_Đầu_năm_đến_nay[[#This Row],[Thực tế]])","v":{"v":25000,"d":"25,000.00 ₫"}},{"$f":"IFERROR(Bảng_Đầu_năm_đến_nay[[#This Row],[₫ còn lại]]/Bảng_Đầu_năm_đến_nay[[#This Row],[Ngân sách]],\"\")","v":{"v":1,"d":"100.00%"}}]
[null,7000,"Máy tính",{"$f":"SUMIF(Tóm_tắt_chi_phí_hàng_tháng[Mã sổ cái],Bảng_Đầu_năm_đến_nay[[#This Row],[Mã sổ cái]],Tóm_tắt_chi_phí_hàng_tháng[Tổng])","v":{"v":0,"d":"0.00 ₫"}},{"v":75000,"d":"75,000.00 ₫"},{"$f":"IF(Bảng_Đầu_năm_đến_nay[[#This Row],[Ngân sách]]=\"\",\"\",Bảng_Đầu_năm_đến_nay[[#This Row],[Ngân sách]]-Bảng_Đầu_năm_đến_nay[[#This Row],[Thực tế]])","v":{"v":75000,"d":"75,000.00 ₫"}},{"$f":"IFERROR(Bảng_Đầu_năm_đến_nay[[#This Row],[₫ còn lại]]/Bảng_Đầu_năm_đến_nay[[#This Row],[Ngân sách]],\"\")","v":{"v":1,"d":"100.00%"}}]
[null,8000,"Gói y tế",{"$f":"SUMIF(Tóm_tắt_chi_phí_hàng_tháng[Mã sổ cái],Bảng_Đầu_năm_đến_nay[[#This Row],[Mã sổ cái]],Tóm_tắt_chi_phí_hàng_tháng[Tổng])","v":{"v":0,"d":"0.00 ₫"}},{"v":65000,"d":"65,000.00 ₫"},{"$f":"IF(Bảng_Đầu_năm_đến_nay[[#This Row],[Ngân sách]]=\"\",\"\",Bảng_Đầu_năm_đến_nay[[#This Row],[Ngân sách]]-Bảng_Đầu_năm_đến_nay[[#This Row],[Thực tế]])","v":{"v":65000,"d":"65,000.00 ₫"}},{"$f":"IFERROR(Bảng_Đầu_năm_đến_nay[[#This Row],[₫ còn lại]]/Bảng_Đầu_năm_đến_nay[[#This Row],[Ngân sách]],\"\")","v":{"v":1,"d":"100.00%"}}]
[null,9000,"Chi phí xây dựng",{"$f":"SUMIF(Tóm_tắt_chi_phí_hàng_tháng[Mã sổ cái],Bảng_Đầu_năm_đến_nay[[#This Row],[Mã sổ cái]],Tóm_tắt_chi_phí_hàng_tháng[Tổng])","v":{"v":0,"d":"0.00 ₫"}},{"v":125000,"d":"125,000.00 ₫"},{"$f":"IF(Bảng_Đầu_năm_đến_nay[[#This Row],[Ngân sách]]=\"\",\"\",Bảng_Đầu_năm_đến_nay[[#This Row],[Ngân sách]]-Bảng_Đầu_năm_đến_nay[[#This Row],[Thực tế]])","v":{"v":125000,"d":"125,000.00 ₫"}},{"$f":"IFERROR(Bảng_Đầu_năm_đến_nay[[#This Row],[₫ còn lại]]/Bảng_Đầu_năm_đến_nay[[#This Row],[Ngân sách]],\"\")","v":{"v":1,"d":"100.00%"}}]
[null,10000,"Tiếp thị",{"$f":"SUMIF(Tóm_tắt_chi_phí_hàng_tháng[Mã sổ cái],Bảng_Đầu_năm_đến_nay[[#This Row],[Mã sổ cái]],Tóm_tắt_chi_phí_hàng_tháng[Tổng])","v":{"v":0,"d":"0.00 ₫"}},{"v":100000,"d":"100,000.00 ₫"},{"$f":"IF(Bảng_Đầu_năm_đến_nay[[#This Row],[Ngân sách]]=\"\",\"\",Bảng_Đầu_năm_đến_nay[[#This Row],[Ngân sách]]-Bảng_Đầu_năm_đến_nay[[#This Row],[Thực tế]])","v":{"v":100000,"d":"100,000.00 ₫"}},{"$f":"IFERROR(Bảng_Đầu_năm_đến_nay[[#This Row],[₫ còn lại]]/Bảng_Đầu_năm_đến_nay[[#This Row],[Ngân sách]],\"\")","v":{"v":1,"d":"100.00%"}}]
[null,11000,"Khoản từ thiện",{"$f":"SUMIF(Tóm_tắt_chi_phí_hàng_tháng[Mã sổ cái],Bảng_Đầu_năm_đến_nay[[#This Row],[Mã sổ cái]],Tóm_tắt_chi_phí_hàng_tháng[Tổng])","v":{"v":0,"d":"0.00 ₫"}},{"v":250000,"d":"250,000.00 ₫"},{"$f":"IF(Bảng_Đầu_năm_đến_nay[[#This Row],[Ngân sách]]=\"\",\"\",Bảng_Đầu_năm_đến_nay[[#This Row],[Ngân sách]]-Bảng_Đầu_năm_đến_nay[[#This Row],[Thực tế]])","v":{"v":250000,"d":"250,000.00 ₫"}},{"$f":"IFERROR(Bảng_Đầu_năm_đến_nay[[#This Row],[₫ còn lại]]/Bảng_Đầu_năm_đến_nay[[#This Row],[Ngân sách]],\"\")","v":{"v":1,"d":"100.00%"}}]
[null,12000,"Khoản tài trợ",{"$f":"SUMIF(Tóm_tắt_chi_phí_hàng_tháng[Mã sổ cái],Bảng_Đầu_năm_đến_nay[[#This Row],[Mã sổ cái]],Tóm_tắt_chi_phí_hàng_tháng[Tổng])","v":{"v":0,"d":"0.00 ₫"}},{"v":50000,"d":"50,000.00 ₫"},{"$f":"IF(Bảng_Đầu_năm_đến_nay[[#This Row],[Ngân sách]]=\"\",\"\",Bảng_Đầu_năm_đến_nay[[#This Row],[Ngân sách]]-Bảng_Đầu_năm_đến_nay[[#This Row],[Thực tế]])","v":{"v":50000,"d":"50,000.00 ₫"}},{"$f":"IFERROR(Bảng_Đầu_năm_đến_nay[[#This Row],[₫ còn lại]]/Bảng_Đầu_năm_đến_nay[[#This Row],[Ngân sách]],\"\")","v":{"v":1,"d":"100.00%"}}]
[null,"Tổng",null,{"$f":"SUBTOTAL(109,Bảng_Đầu_năm_đến_nay[Thực tế])","v":{"v":0,"d":"0.00 ₫"}},{"$f":"SUBTOTAL(109,Bảng_Đầu_năm_đến_nay[Ngân sách])","v":{"v":1140000,"d":"1,140,000.00 ₫"}},{"$f":"SUBTOTAL(109,Bảng_Đầu_năm_đến_nay[₫ còn lại])","v":{"v":1140000,"d":"1,140,000.00 ₫"}},{"$f":"Bảng_Đầu_năm_đến_nay[[#Totals],[₫ còn lại]]/Bảng_Đầu_năm_đến_nay[[#Totals],[Ngân sách]]","v":{"v":1,"d":"100.00%"}}]

{"sheet":"TÓM TẮT CHI PHÍ HÀNG THÁNG","index":1,"n_rows":18,"n_cols":17,"rows_kept":18,"merged":[[1,1,1,16]]}
[]
[null,"TÓM TẮT CHI PHÍ HÀNG THÁNG"]
[null,"Slicer để lọc dữ liệu theo Tiêu đề tài khoản nằm trong ô này.",null,{"$f":"DATEVALUE(\"1-1\"&\"-\"&_NĂM)","v":{"v":43466,"d":"4346600.00%"}},{"$f":"DATEVALUE(\"1-2\"&\"-\"&_NĂM)","v":{"v":43497,"d":"4349700.00%"}},{"$f":"DATEVALUE(\"1-3\"&\"-\"&_NĂM)","v":{"v":43525,"d":"4352500.00%"}},{"$f":"DATEVALUE(\"1-4\"&\"-\"&_NĂM)","v":{"v":43556,"d":"4355600.00%"}},{"$f":"DATEVALUE(\"1-5\"&\"-\"&_NĂM)","v":{"v":43586,"d":"4358600.00%"}},{"$f":"DATEVALUE(\"1-6\"&\"-\"&_NĂM)","v":{"v":43617,"d":"4361700.00%"}},{"$f":"DATEVALUE(\"1-7\"&\"-\"&_NĂM)","v":{"v":43647,"d":"4364700.00%"}},{"$f":"DATEVALUE(\"1-8\"&\"-\"&_NĂM)","v":{"v":43678,"d":"4367800.00%"}},{"$f":"DATEVALUE(\"1-9\"&\"-\"&_NĂM)","v":{"v":43709,"d":"4370900.00%"}},{"$f":"DATEVALUE(\"1-10\"&\"-\"&_NĂM)","v":{"v":43739,"d":"4373900.00%"}},{"$f":"DATEVALUE(\"1-11\"&\"-\"&_NĂM)","v":{"v":43770,"d":"4377000.00%"}},{"$f":"DATEVALUE(\"1-12\"&\"-\"&_NĂM)","v":{"v":43800,"d":"4380000.00%"}}]
[{"$nulls":3},{"$f":"EOMONTH(D3,0)","v":{"v":43496,"d":"4349600.00%"}},{"$f":"EOMONTH(E3,0)","v":{"v":43524,"d":"4352400.00%"}},{"$f":"EOMONTH(F3,0)","v":{"v":43555,"d":"4355500.00%"}},{"$f":"EOMONTH(G3,0)","v":{"v":43585,"d":"4358500.00%"}},{"$f":"EOMONTH(H3,0)","v":{"v":43616,"d":"4361600.00%"}},{"$f":"EOMONTH(I3,0)","v":{"v":43646,"d":"4364600.00%"}},{"v":43677,"d":"4367700.00%"},{"v":43708,"d":"4370800.00%"},{"v":43738,"d":"4373800.00%"},{"v":43769,"d":"4376900.00%"},{"v":43799,"d":"4379900.00%"},{"v":43830,"d":"4383000.00%"}]
[null,"Mã sổ cái","Tiêu đề tài khoản","Tháng Giêng","Tháng Hai","Tháng Ba","Tháng Tư","Tháng Năm","Tháng Sáu","Tháng Bảy","Tháng Tám","Tháng Chín","Tháng Mười","Tháng Mười Một","Tháng Mười Hai","Tổng"," "]
[null,1000,"Quảng cáo",{"$f":"SUMIFS(Chi_phí_phân_theo_khoản_mục[Số tiền trên séc],Chi_phí_phân_theo_khoản_mục[Mã sổ cái],Tóm_tắt_chi_phí_hàng_tháng[[#This Row],[Mã sổ cái]],Chi_phí_phân_theo_khoản_mục[Ngày lập hóa đơn],\">=\"&D$3,Chi_phí_phân_theo_khoản_mục[Ngày lập hóa đơn],\"<=\"&D$4)+SUMIFS(Khác[Số tiền trên séc],Khác[Mã sổ cái],Tóm_tắt_chi_phí_hàng_tháng[[#This Row],[Mã sổ cái]],Khác[Ngày khởi tạo yêu cầu séc],\">=\"&DATEVALUE(\"1 \"&Tóm_tắt_chi_phí_hàng_tháng[[#Headers],[Tháng Giêng]]&\" \"&_NĂM),Khác[Ngày khởi tạo yêu cầu séc],\"<=\"&D$4)","v":{"v":0,"d":"0.00 ₫"}},{"$f":"SUMIFS(Chi_phí_phân_theo_khoản_mục[Số tiền trên séc],Chi_phí_phân_theo_khoản_mục[Mã sổ cái],Tóm_tắt_chi_phí_hàng_tháng[[#This Row],[Mã sổ cái]],Chi_phí_phân_theo_khoản_mục[Ngày lập hóa đơn],\">=\"&E$3,Chi_phí_phân_theo_khoản_mục[Ngày lập hóa đơn],\"<=\"&E$4)+SUMIFS(Khác[Số tiền trên séc],Khác[Mã sổ cái],Tóm_tắt_chi_phí_hàng_tháng[[#This Row],[Mã sổ cái]],Khác[Ngày khởi tạo yêu cầu séc],\">=\"&DATEVALUE(\"1 \"&Tóm_tắt_chi_phí_hàng_tháng[[#Headers],[Tháng Hai]]&\" \"&_NĂM),Khác[Ngày khởi tạo yêu cầu séc],\"<=\"&E$4)","v":{"v":0,"d":"0.00 ₫"}},{"$f":"SUMIFS(Chi_phí_phân_theo_khoản_mục[Số tiền trên séc],Chi_phí_phân_theo_khoản_mục[Mã sổ cái],Tóm_tắt_chi_phí_hàng_tháng[[#This Row],[Mã sổ cái]],Chi_phí_phân_theo_khoản_mục[Ngày lập hóa đơn],\">=\"&F$3,Chi_phí_phân_theo_khoản_mục[Ngày lập hóa đơn],\"<=\"&F$4)+SUMIFS(Khác[Số tiền trên séc],Khác[Mã sổ cái],Tóm_tắt_chi_phí_hàng_tháng[[#This Row],[Mã sổ cái]],Khác[Ngày khởi tạo yêu cầu séc],\">=\"&DATEVALUE(\"1 \"&Tóm_tắt_chi_phí_hàng_tháng[[#Headers],[Tháng Ba]]&\" \"&_NĂM),Khác[Ngày khởi tạo yêu cầu séc],\"<=\"&F$4)","v":{"v":0,"d":"0.00 ₫"}},{"$f":"SUMIFS(Chi_phí_phân_theo_khoản_mục[Số tiền trên séc],Chi_phí_phân_theo_khoản_mục[Mã sổ cái],Tóm_tắt_chi_phí_hàng_tháng[[#This Row],[Mã sổ cái]],Chi_phí_phân_theo_khoản_mục[Ngày lập hóa đơn],\">=\"&G$3,Chi_phí_phân_theo_khoản_mục[Ngày lập hóa đơn],\"<=\"&G$4)+SUMIFS(Khác[Số tiền trên séc],Khác[Mã sổ cái],Tóm_tắt_chi_phí_hàng_tháng[[#This Row],[Mã sổ cái]],Khác[Ngày khởi tạo yêu cầu séc],\">=\"&DATEVALUE(\"1 \"&Tóm_tắt_chi_phí_hàng_tháng[[#Headers],[Tháng Tư]]&\" \"&_NĂM),Khác[Ngày khởi tạo yêu cầu séc],\"<=\"&G$4)","v":{"v":0,"d":"0.00 ₫"}},{"$f":"SUMIFS(Chi_phí_phân_theo_khoản_mục[Số tiền trên séc],Chi_phí_phân_theo_khoản_mục[Mã sổ cái],Tóm_tắt_chi_phí_hàng_tháng[[#This Row],[Mã sổ cái]],Chi_phí_phân_theo_khoản_mục[Ngày lập hóa đơn],\">=\"&H$3,Chi_phí_phân_theo_khoản_mục[Ngày lập hóa đơn],\"<=\"&H$4)+SUMIFS(Khác[Số tiền trên séc],Khác[Mã sổ cái],Tóm_tắt_chi_phí_hàng_tháng[[#This Row],[Mã sổ cái]],Khác[Ngày khởi tạo yêu cầu séc],\">=\"&DATEVALUE(\"1 \"&Tóm_tắt_chi_phí_hàng_tháng[[#Headers],[Tháng Năm]]&\" \"&_NĂM),Khác[Ngày khởi tạo yêu cầu séc],\"<=\"&H$4)","v":{"v":0,"d":"0.00 ₫"}},{"$f":"SUMIFS(Chi_phí_phân_theo_khoản_mục[Số tiền trên séc],Chi_phí_phân_theo_khoản_mục[Mã sổ cái],Tóm_tắt_chi_phí_hàng_tháng[[#This Row],[Mã sổ cái]],Chi_phí_phân_theo_khoản_mục[Ngày lập hóa đơn],\">=\"&I$3,Chi_phí_phân_theo_khoản_mục[Ngày lập hóa đơn],\"<=\"&I$4)+SUMIFS(Khác[Số tiền trên séc],Khác[Mã sổ cái],Tóm_tắt_chi_phí_hàng_tháng[[#This Row],[Mã sổ cái]],Khác[Ngày khởi tạo yêu cầu séc],\">=\"&DATEVALUE(\"1 \"&Tóm_tắt_chi_phí_hàng_tháng[[#Headers],[Tháng Sáu]]&\" \"&_NĂM),Khác[Ngày khởi tạo yêu cầu séc],\"<=\"&I$4)","v":{"v":0,"d":"0.00 ₫"}},{"$f":"SUMIFS(Chi_phí_phân_theo_khoản_mục[Số tiền trên séc],Chi_phí_phân_theo_khoản_mục[Mã sổ cái],Tóm_tắt_chi_phí_hàng_tháng[[#This Row],[Mã sổ cái]],Chi_phí_phân_theo_khoản_mục[Ngày lập hóa đơn],\">=\"&J$3,Chi_phí_phân_theo_khoản_mục[Ngày lập hóa đơn],\"<=\"&J$4)+SUMIFS(Khác[Số tiền trên séc],Khác[Mã sổ cái],Tóm_tắt_chi_phí_hàng_tháng[[#This Row],[Mã sổ cái]],Khác[Ngày khởi tạo yêu cầu séc],\">=\"&DATEVALUE(\"1 \"&Tóm_tắt_chi_phí_hàng_tháng[[#Headers],[Tháng Bảy]]&\" \"&_NĂM),Khác[Ngày khởi tạo yêu cầu séc],\"<=\"&J$4)","v":{"v":0,"d":"0.00 ₫"}},{"$f":"SUMIFS(Chi_phí_phân_theo_khoản_mục[Số tiền trên séc],Chi_phí_phân_theo_khoản_mục[Mã sổ cái],Tóm_tắt_chi_phí_hàng_tháng[[#This Row],[Mã sổ cái]],Chi_phí_phân_theo_khoản_mục[Ngày lập hóa đơn],\">=\"&K$3,Chi_phí_phân_theo_khoản_mục[Ngày lập hóa đơn],\"<=\"&K$4)+SUMIFS(Khác[Số tiền trên séc],Khác[Mã sổ cái],Tóm_tắt_chi_phí_hàng_tháng[[#This Row],[Mã sổ cái]],Khác[Ngày khởi tạo yêu cầu séc],\">=\"&DATEVALUE(\"1 \"&Tóm_tắt_chi_phí_hàng_tháng[[#Headers],[Tháng Tám]]&\" \"&_NĂM),Khác[Ngày khởi tạo yêu cầu séc],\"<=\"&K$4)","v":{"v":0,"d":"0.00 ₫"}},{"$f":"SUMIFS(Chi_phí_phân_theo_khoản_mục[Số tiền trên séc],Chi_phí_phân_theo_khoản_mục[Mã sổ cái],Tóm_tắt_chi_phí_hàng_tháng[[#This Row],[Mã sổ cái]],Chi_phí_phân_theo_khoản_mục[Ngày lập hóa đơn],\">=\"&L$3,Chi_phí_phân_theo_khoản_mục[Ngày lập hóa đơn],\"<=\"&L$4)+SUMIFS(Khác[Số tiền trên séc],Khác[Mã sổ cái],Tóm_tắt_chi_phí_hàng_tháng[[#This Row],[Mã sổ cái]],Khác[Ngày khởi tạo yêu cầu séc],\">=\"&DATEVALUE(\"1 \"&Tóm_tắt_chi_phí_hàng_tháng[[#Headers],[Tháng Chín]]&\" \"&_NĂM),Khác[Ngày khởi tạo yêu cầu séc],\"<=\"&L$4)","v":{"v":0,"d":"0.00 ₫"}},{"$f":"SUMIFS(Chi_phí_phân_theo_khoản_mục[Số tiền trên séc],Chi_phí_phân_theo_khoản_mục[Mã sổ cái],Tóm_tắt_chi_phí_hàng_tháng[[#This Row],[Mã sổ cái]],Chi_phí_phân_theo_khoản_mục[Ngày lập hóa đơn],\">=\"&M$3,Chi_phí_phân_theo_khoản_mục[Ngày lập hóa đơn],\"<=\"&M$4)+SUMIFS(Khác[Số tiền trên séc],Khác[Mã sổ cái],Tóm_tắt_chi_phí_hàng_tháng[[#This Row],[Mã sổ cái]],Khác[Ngày khởi tạo yêu cầu séc],\">=\"&DATEVALUE(\"1 \"&Tóm_tắt_chi_phí_hàng_tháng[[#Headers],[Tháng Mười]]&\" \"&_NĂM),Khác[Ngày khởi tạo yêu cầu séc],\"<=\"&M$4)","v":{"v":0,"d":"0.00 ₫"}},{"$f":"SUMIFS(Chi_phí_phân_theo_khoản_mục[Số tiền trên séc],Chi_phí_phân_theo_khoản_mục[Mã sổ cái],Tóm_tắt_chi_phí_hàng_tháng[[#This Row],[Mã sổ cái]],Chi_phí_phân_theo_khoản_mục[Ngày lập hóa đơn],\">=\"&N$3,Chi_phí_phân_theo_khoản_mục[Ngày lập hóa đơn],\"<=\"&N$4)+SUMIFS(Khác[Số tiền trên séc],Khác[Mã sổ cái],Tóm_tắt_chi_phí_hàng_tháng[[#This Row],[Mã sổ cái]],Khác[Ngày khởi tạo yêu cầu séc],\">=\"&DATEVALUE(\"1 \"&Tóm_tắt_chi_phí_hàng_tháng[[#Headers],[Tháng Mười Một]]&\" \"&_NĂM),Khác[Ngày khởi tạo yêu cầu séc],\"<=\"&N$4)","v":{"v":0,"d":"0.00 ₫"}},{"$f":"SUMIFS(Chi_phí_phân_theo_khoản_mục[Số tiền trên séc],Chi_phí_phân_theo_khoản_mục[Mã sổ cái],Tóm_tắt_chi_phí_hàng_tháng[[#This Row],[Mã sổ cái]],Chi_phí_phân_theo_khoản_mục[Ngày lập hóa đơn],\">=\"&O$3,Chi_phí_phân_theo_khoản_mục[Ngày lập hóa đơn],\"<=\"&O$4)+SUMIFS(Khác[Số tiền trên séc],Khác[Mã sổ cái],Tóm_tắt_chi_phí_hàng_tháng[[#This Row],[Mã sổ cái]],Khác[Ngày khởi tạo yêu cầu séc],\">=\"&DATEVALUE(\"1 \"&Tóm_tắt_chi_phí_hàng_tháng[[#Headers],[Tháng Mười Hai]]&\" \"&_NĂM),Khác[Ngày khởi tạo yêu cầu séc],\"<=\"&O$4)","v":{"v":0,"d":"0.00 ₫"}},{"$f":"SUM(Tóm_tắt_chi_phí_hàng_tháng[[#This Row],[Tháng Giêng]:[Tháng Mười Hai]])","v":{"v":0,"d":"0.00 ₫"}}]
[null,2000,"Thiết bị văn phòng",{"$f":"SUMIFS(Chi_phí_phân_theo_khoản_mục[Số tiền trên séc],Chi_phí_phân_theo_khoản_mục[Mã sổ cái],Tóm_tắt_chi_phí_hàng_tháng[[#This Row],[Mã sổ cái]],Chi_phí_phân_theo_khoản_mục[Ngày lập hóa đơn],\">=\"&D$3,Chi_phí_phân_theo_khoản_mục[Ngày lập hóa đơn],\"<=\"&D$4)+SUMIFS(Khác[Số tiền trên séc],Khác[Mã sổ cái],Tóm_tắt_chi_phí_hàng_tháng[[#This Row],[Mã sổ cái]],Khác[Ngày khởi tạo yêu cầu séc],\">=\"&DATEVALUE(\"1 \"&Tóm_tắt_chi_phí_hàng_tháng[[#Headers],[Tháng Giêng]]&\" \"&_NĂM),Khác[Ngày khởi tạo yêu cầu séc],\"<=\"&D$4)","v":{"v":0,"d":"0.00 ₫"}},{"$f":"SUMIFS(Chi_phí_phân_theo_khoản_mục[Số tiền trên séc],Chi_phí_phân_theo_khoản_mục[Mã sổ cái],Tóm_tắt_chi_phí_hàng_tháng[[#This Row],[Mã sổ cái]],Chi_phí_phân_theo_khoản_mục[Ngày lập hóa đơn],\">=\"&E$3,Chi_phí_phân_theo_khoản_mục[Ngày lập hóa đơn],\"<=\"&E$4)+SUMIFS(Khác[Số tiền trên séc],Khác[Mã sổ cái],Tóm_tắt_chi_phí_hàng_tháng[[#This Row],[Mã sổ cái]],Khác[Ngày khởi tạo yêu cầu séc],\">=\"&DATEVALUE(\"1 \"&Tóm_tắt_chi_phí_hàng_tháng[[#Headers],[Tháng Hai]]&\" \"&_NĂM),Khác[Ngày khởi tạo yêu cầu séc],\"<=\"&E$4)","v":{"v":0,"d":"0.00 ₫"}},{"$f":"SUMIFS(Chi_phí_phân_theo_khoản_mục[Số tiền trên séc],Chi_phí_phân_theo_khoản_mục[Mã sổ cái],Tóm_tắt_chi_phí_hàng_tháng[[#This Row],[Mã sổ cái]],Chi_phí_phân_theo_khoản_mục[Ngày lập hóa đơn],\">=\"&F$3,Chi_phí_phân_theo_khoản_mục[Ngày lập hóa đơn],\"<=\"&F$4)+SUMIFS(Khác[Số tiền trên séc],Khác[Mã sổ cái],Tóm_tắt_chi_phí_hàng_tháng[[#This Row],[Mã sổ cái]],Khác[Ngày khởi tạo yêu cầu séc],\">=\"&DATEVALUE(\"1 \"&Tóm_tắt_chi_phí_hàng_tháng[[#Headers],[Tháng Ba]]&\" \"&_NĂM),Khác[Ngày khởi tạo yêu cầu séc],\"<=\"&F$4)","v":{"v":0,"d":"0.00 ₫"}},{"$f":"SUMIFS(Chi_phí_phân_theo_khoản_mục[Số tiền trên séc],Chi_phí_phân_theo_khoản_mục[Mã sổ cái],Tóm_tắt_chi_phí_hàng_tháng[[#This Row],[Mã sổ cái]],Chi_phí_phân_theo_khoản_mục[Ngày lập hóa đơn],\">=\"&G$3,Chi_phí_phân_theo_khoản_mục[Ngày lập hóa đơn],\"<=\"&G$4)+SUMIFS(Khác[Số tiền trên séc],Khác[Mã sổ cái],Tóm_tắt_chi_phí_hàng_tháng[[#This Row],[Mã sổ cái]],Khác[Ngày khởi tạo yêu cầu séc],\">=\"&DATEVALUE(\"1 \"&Tóm_tắt_chi_phí_hàng_tháng[[#Headers],[Tháng Tư]]&\" \"&_NĂM),Khác[Ngày khởi tạo yêu cầu séc],\"<=\"&G$4)","v":{"v":0,"d":"0.00 ₫"}},{"$f":"SUMIFS(Chi_phí_phân_theo_khoản_mục[Số tiền trên séc],Chi_phí_phân_theo_khoản_mục[Mã sổ cái],Tóm_tắt_chi_phí_hàng_tháng[[#This Row],[Mã sổ cái]],Chi_phí_phân_theo_khoản_mục[Ngày lập hóa đơn],\">=\"&H$3,Chi_phí_phân_theo_khoản_mục[Ngày lập hóa đơn],\"<=\"&H$4)+SUMIFS(Khác[Số tiền trên séc],Khác[Mã sổ cái],Tóm_tắt_chi_phí_hàng_tháng[[#This Row],[Mã sổ cái]],Khác[Ngày khởi tạo yêu cầu séc],\">=\"&DATEVALUE(\"1 \"&Tóm_tắt_chi_phí_hàng_tháng[[#Headers],[Tháng Năm]]&\" \"&_NĂM),Khác[Ngày khởi tạo yêu cầu séc],\"<=\"&H$4)","v":{"v":0,"d":"0.00 ₫"}},{"$f":"SUMIFS(Chi_phí_phân_theo_khoản_mục[Số tiền trên séc],Chi_phí_phân_theo_khoản_mục[Mã sổ cái],Tóm_tắt_chi_phí_hàng_tháng[[#This Row],[Mã sổ cái]],Chi_phí_phân_theo_khoản_mục[Ngày lập hóa đơn],\">=\"&I$3,Chi_phí_phân_theo_khoản_mục[Ngày lập hóa đơn],\"<=\"&I$4)+SUMIFS(Khác[Số tiền trên séc],Khác[Mã sổ cái],Tóm_tắt_chi_phí_hàng_tháng[[#This Row],[Mã sổ cái]],Khác[Ngày khởi tạo yêu cầu séc],\">=\"&DATEVALUE(\"1 \"&Tóm_tắt_chi_phí_hàng_tháng[[#Headers],[Tháng Sáu]]&\" \"&_NĂM),Khác[Ngày khởi tạo yêu cầu séc],\"<=\"&I$4)","v":{"v":0,"d":"0.00 ₫"}},{"$f":"SUMIFS(Chi_phí_phân_theo_khoản_mục[Số tiền trên séc],Chi_phí_phân_theo_khoản_mục[Mã sổ cái],Tóm_tắt_chi_phí_hàng_tháng[[#This Row],[Mã sổ cái]],Chi_phí_phân_theo_khoản_mục[Ngày lập hóa đơn],\">=\"&J$3,Chi_phí_phân_theo_khoản_mục[Ngày lập hóa đơn],\"<=\"&J$4)+SUMIFS(Khác[Số tiền trên séc],Khác[Mã sổ cái],Tóm_tắt_chi_phí_hàng_tháng[[#This Row],[Mã sổ cái]],Khác[Ngày khởi tạo yêu cầu séc],\">=\"&DATEVALUE(\"1 \"&Tóm_tắt_chi_phí_hàng_tháng[[#Headers],[Tháng Bảy]]&\" \"&_NĂM),Khác[Ngày khởi tạo yêu cầu séc],\"<=\"&J$4)","v":{"v":0,"d":"0.00 ₫"}},{"$f":"SUMIFS(Chi_phí_phân_theo_khoản_mục[Số tiền trên séc],Chi_phí_phân_theo_khoản_mục[Mã sổ cái],Tóm_tắt_chi_phí_hàng_tháng[[#This Row],[Mã sổ cái]],Chi_phí_phân_theo_khoản_mục[Ngày lập hóa đơn],\">=\"&K$3,Chi_phí_phân_theo_khoản_mục[Ngày lập hóa đơn],\"<=\"&K$4)+SUMIFS(Khác[Số tiền trên séc],Khác[Mã sổ cái],Tóm_tắt_chi_phí_hàng_tháng[[#This Row],[Mã sổ cái]],Khác[Ngày khởi tạo yêu cầu séc],\">=\"&DATEVALUE(\"1 \"&Tóm_tắt_chi_phí_hàng_tháng[[#Headers],[Tháng Tám]]&\" \"&_NĂM),Khác[Ngày khởi tạo yêu cầu séc],\"<=\"&K$4)","v":{"v":0,"d":"0.00 ₫"}},{"$f":"SUMIFS(Chi_phí_phân_theo_khoản_mục[Số tiền trên séc],Chi_phí_phân_theo_khoản_mục[Mã sổ cái],Tóm_tắt_chi_phí_hàng_tháng[[#This Row],[Mã sổ cái]],Chi_phí_phân_theo_khoản_mục[Ngày lập hóa đơn],\">=\"&L$3,Chi_phí_phân_theo_khoản_mục[Ngày lập hóa đơn],\"<=\"&L$4)+SUMIFS(Khác[Số tiền trên séc],Khác[Mã sổ cái],Tóm_tắt_chi_phí_hàng_tháng[[#This Row],[Mã sổ cái]],Khác[Ngày khởi tạo yêu cầu séc],\">=\"&DATEVALUE(\"1 \"&Tóm_tắt_chi_phí_hàng_tháng[[#Headers],[Tháng Chín]]&\" \"&_NĂM),Khác[Ngày khởi tạo yêu cầu séc],\"<=\"&L$4)","v":{"v":0,"d":"0.00 ₫"}},{"$f":"SUMIFS(Chi_phí_phân_theo_khoản_mục[Số tiền trên séc],Chi_phí_phân_theo_khoản_mục[Mã sổ cái],Tóm_tắt_chi_phí_hàng_tháng[[#This Row],[Mã sổ cái]],Chi_phí_phân_theo_khoản_mục[Ngày lập hóa đơn],\">=\"&M$3,Chi_phí_phân_theo_khoản_mục[Ngày lập hóa đơn],\"<=\"&M$4)+SUMIFS(Khác[Số tiền trên séc],Khác[Mã sổ cái],Tóm_tắt_chi_phí_hàng_tháng[[#This Row],[Mã sổ cái]],Khác[Ngày khởi tạo yêu cầu séc],\">=\"&DATEVALUE(\"1 \"&Tóm_tắt_chi_phí_hàng_tháng[[#Headers],[Tháng Mười]]&\" \"&_NĂM),Khác[Ngày khởi tạo yêu cầu séc],\"<=\"&M$4)","v":{"v":0,"d":"0.00 ₫"}},{"$f":"SUMIFS(Chi_phí_phân_theo_khoản_mục[Số tiền trên séc],Chi_phí_phân_theo_khoản_mục[Mã sổ cái],Tóm_tắt_chi_phí_hàng_tháng[[#This Row],[Mã sổ cái]],Chi_phí_phân_theo_khoản_mục[Ngày lập hóa đơn],\">=\"&N$3,Chi_phí_phân_theo_khoản_mục[Ngày lập hóa đơn],\"<=\"&N$4)+SUMIFS(Khác[Số tiền trên séc],Khác[Mã sổ cái],Tóm_tắt_chi_phí_hàng_tháng[[#This Row],[Mã sổ cái]],Khác[Ngày khởi tạo yêu cầu séc],\">=\"&DATEVALUE(\"1 \"&Tóm_tắt_chi_phí_hàng_tháng[[#Headers],[Tháng Mười Một]]&\" \"&_NĂM),Khác[Ngày khởi tạo yêu cầu séc],\"<=\"&N$4)","v":{"v":0,"d":"0.00 ₫"}},{"$f":"SUMIFS(Chi_phí_phân_theo_khoản_mục[Số tiền trên séc],Chi_phí_phân_theo_khoản_mục[Mã sổ cái],Tóm_tắt_chi_phí_hàng_tháng[[#This Row],[Mã sổ cái]],Chi_phí_phân_theo_khoản_mục[Ngày lập hóa đơn],\">=\"&O$3,Chi_phí_phân_theo_khoản_mục[Ngày lập hóa đơn],\"<=\"&O$4)+SUMIFS(Khác[Số tiền trên séc],Khác[Mã sổ cái],Tóm_tắt_chi_phí_hàng_tháng[[#This Row],[Mã sổ cái]],Khác[Ngày khởi tạo yêu cầu séc],\">=\"&DATEVALUE(\"1 \"&Tóm_tắt_chi_phí_hàng_tháng[[#Headers],[Tháng Mười Hai]]&\" \"&_NĂM),Khác[Ngày khởi tạo yêu cầu séc],\"<=\"&O$4)","v":{"v":0,"d":"0.00 ₫"}},{"$f":"SUM(Tóm_tắt_chi_phí_hàng_tháng[[#This Row],[Tháng Giêng]:[Tháng Mười Hai]])","v":{"v":0,"d":"0.00 ₫"}}]
[null,3000,"Máy in",{"$f":"SUMIFS(Chi_phí_phân_theo_khoản_mục[Số tiền trên séc],Chi_phí_phân_theo_khoản_mục[Mã sổ cái],Tóm_tắt_chi_phí_hàng_tháng[[#This Row],[Mã sổ cái]],Chi_phí_phân_theo_khoản_mục[Ngày lập hóa đơn],\">=\"&D$3,Chi_phí_phân_theo_khoản_mục[Ngày lập hóa đơn],\"<=\"&D$4)+SUMIFS(Khác[Số tiền trên séc],Khác[Mã sổ cái],Tóm_tắt_chi_phí_hàng_tháng[[#This Row],[Mã sổ cái]],Khác[Ngày khởi tạo yêu cầu séc],\">=\"&DATEVALUE(\"1 \"&Tóm_tắt_chi_phí_hàng_tháng[[#Headers],[Tháng Giêng]]&\" \"&_NĂM),Khác[Ngày khởi tạo yêu cầu séc],\"<=\"&D$4)","v":{"v":0,"d":"0.00 ₫"}},{"$f":"SUMIFS(Chi_phí_phân_theo_khoản_mục[Số tiền trên séc],Chi_phí_phân_theo_khoản_mục[Mã sổ cái],Tóm_tắt_chi_phí_hàng_tháng[[#This Row],[Mã sổ cái]],Chi_phí_phân_theo_khoản_mục[Ngày lập hóa đơn],\">=\"&E$3,Chi_phí_phân_theo_khoản_mục[Ngày lập hóa đơn],\"<=\"&E$4)+SUMIFS(Khác[Số tiền trên séc],Khác[Mã sổ cái],Tóm_tắt_chi_phí_hàng_tháng[[#This Row],[Mã sổ cái]],Khác[Ngày khởi tạo yêu cầu séc],\">=\"&DATEVALUE(\"1 \"&Tóm_tắt_chi_phí_hàng_tháng[[#Headers],[Tháng Hai]]&\" \"&_NĂM),Khác[Ngày khởi tạo yêu cầu séc],\"<=\"&E$4)","v":{"v":0,"d":"0.00 ₫"}},{"$f":"SUMIFS(Chi_phí_phân_theo_khoản_mục[Số tiền trên séc],Chi_phí_phân_theo_khoản_mục[Mã sổ cái],Tóm_tắt_chi_phí_hàng_tháng[[#This Row],[Mã sổ cái]],Chi_phí_phân_theo_khoản_mục[Ngày lập hóa đơn],\">=\"&F$3,Chi_phí_phân_theo_khoản_mục[Ngày lập hóa đơn],\"<=\"&F$4)+SUMIFS(Khác[Số tiền trên séc],Khác[Mã sổ cái],Tóm_tắt_chi_phí_hàng_tháng[[#This Row],[Mã sổ cái]],Khác[Ngày khởi tạo yêu cầu séc],\">=\"&DATEVALUE(\"1 \"&Tóm_tắt_chi_phí_hàng_tháng[[#Headers],[Tháng Ba]]&\" \"&_NĂM),Khác[Ngày khởi tạo yêu cầu séc],\"<=\"&F$4)","v":{"v":0,"d":"0.00 ₫"}},{"$f":"SUMIFS(Chi_phí_phân_theo_khoản_mục[Số tiền trên séc],Chi_phí_phân_theo_khoản_mục[Mã sổ cái],Tóm_tắt_chi_phí_hàng_tháng[[#This Row],[Mã sổ cái]],Chi_phí_phân_theo_khoản_mục[Ngày lập hóa đơn],\">=\"&G$3,Chi_phí_phân_theo_khoản_mục[Ngày lập hóa đơn],\"<=\"&G$4)+SUMIFS(Khác[Số tiền trên séc],Khác[Mã sổ cái],Tóm_tắt_chi_phí_hàng_tháng[[#This Row],[Mã sổ cái]],Khác[Ngày khởi tạo yêu cầu séc],\">=\"&DATEVALUE(\"1 \"&Tóm_tắt_chi_phí_hàng_tháng[[#Headers],[Tháng Tư]]&\" \"&_NĂM),Khác[Ngày khởi tạo yêu cầu séc],\"<=\"&G$4)","v":{"v":0,"d":"0.00 ₫"}},{"$f":"SUMIFS(Chi_phí_phân_theo_khoản_mục[Số tiền trên séc],Chi_phí_phân_theo_khoản_mục[Mã sổ cái],Tóm_tắt_chi_phí_hàng_tháng[[#This Row],[Mã sổ cái]],Chi_phí_phân_theo_khoản_mục[Ngày lập hóa đơn],\">=\"&H$3,Chi_phí_phân_theo_khoản_mục[Ngày lập hóa đơn],\"<=\"&H$4)+SUMIFS(Khác[Số tiền trên séc],Khác[Mã sổ cái],Tóm_tắt_chi_phí_hàng_tháng[[#This Row],[Mã sổ cái]],Khác[Ngày khởi tạo yêu cầu séc],\">=\"&DATEVALUE(\"1 \"&Tóm_tắt_chi_phí_hàng_tháng[[#Headers],[Tháng Năm]]&\" \"&_NĂM),Khác[Ngày khởi tạo yêu cầu séc],\"<=\"&H$4)","v":{"v":0,"d":"0.00 ₫"}},{"$f":"SUMIFS(Chi_phí_phân_theo_khoản_mục[Số tiền trên séc],Chi_phí_phân_theo_khoản_mục[Mã sổ cái],Tóm_tắt_chi_phí_hàng_tháng[[#This Row],[Mã sổ cái]],Chi_phí_phân_theo_khoản_mục[Ngày lập hóa đơn],\">=\"&I$3,Chi_phí_phân_theo_khoản_mục[Ngày lập hóa đơn],\"<=\"&I$4)+SUMIFS(Khác[Số tiền trên séc],Khác[Mã sổ cái],Tóm_tắt_chi_phí_hàng_tháng[[#This Row],[Mã sổ cái]],Khác[Ngày khởi tạo yêu cầu séc],\">=\"&DATEVALUE(\"1 \"&Tóm_tắt_chi_phí_hàng_tháng[[#Headers],[Tháng Sáu]]&\" \"&_NĂM),Khác[Ngày khởi tạo yêu cầu séc],\"<=\"&I$4)","v":{"v":0,"d":"0.00 ₫"}},{"$f":"SUMIFS(Chi_phí_phân_theo_khoản_mục[Số tiền trên séc],Chi_phí_phân_theo_khoản_mục[Mã sổ cái],Tóm_tắt_chi_phí_hàng_tháng[[#This Row],[Mã sổ cái]],Chi_phí_phân_theo_khoản_mục[Ngày lập hóa đơn],\">=\"&J$3,Chi_phí_phân_theo_khoản_mục[Ngày lập hóa đơn],\"<=\"&J$4)+SUMIFS(Khác[Số tiền trên séc],Khác[Mã sổ cái],Tóm_tắt_chi_phí_hàng_tháng[[#This Row],[Mã sổ cái]],Khác[Ngày khởi tạo yêu cầu séc],\">=\"&DATEVALUE(\"1 \"&Tóm_tắt_chi_phí_hàng_tháng[[#Headers],[Tháng Bảy]]&\" \"&_NĂM),Khác[Ngày khởi tạo yêu cầu séc],\"<=\"&J$4)","v":{"v":0,"d":"0.00 ₫"}},{"$f":"SUMIFS(Chi_phí_phân_theo_khoản_mục[Số tiền trên séc],Chi_phí_phân_theo_khoản_mục[Mã sổ cái],Tóm_tắt_chi_phí_hàng_tháng[[#This Row],[Mã sổ cái]],Chi_phí_phân_theo_khoản_mục[Ngày lập hóa đơn],\">=\"&K$3,Chi_phí_phân_theo_khoản_mục[Ngày lập hóa đơn],\"<=\"&K$4)+SUMIFS(Khác[Số tiền trên séc],Khác[Mã sổ cái],Tóm_tắt_chi_phí_hàng_tháng[[#This Row],[Mã sổ cái]],Khác[Ngày khởi tạo yêu cầu séc],\">=\"&DATEVALUE(\"1 \"&Tóm_tắt_chi_phí_hàng_tháng[[#Headers],[Tháng Tám]]&\" \"&_NĂM),Khác[Ngày khởi tạo yêu cầu séc],\"<=\"&K$4)","v":{"v":0,"d":"0.00 ₫"}},{"$f":"SUMIFS(Chi_phí_phân_theo_khoản_mục[Số tiền trên séc],Chi_phí_phân_theo_khoản_mục[Mã sổ cái],Tóm_tắt_chi_phí_hàng_tháng[[#This Row],[Mã sổ cái]],Chi_phí_phân_theo_khoản_mục[Ngày lập hóa đơn],\">=\"&L$3,Chi_phí_phân_theo_khoản_mục[Ngày lập hóa đơn],\"<=\"&L$4)+SUMIFS(Khác[Số tiền trên séc],Khác[Mã sổ cái],Tóm_tắt_chi_phí_hàng_tháng[[#This Row],[Mã sổ cái]],Khác[Ngày khởi tạo yêu cầu séc],\">=\"&DATEVALUE(\"1 \"&Tóm_tắt_chi_phí_hàng_tháng[[#Headers],[Tháng Chín]]&\" \"&_NĂM),Khác[Ngày khởi tạo yêu cầu séc],\"<=\"&L$4)","v":{"v":0,"d":"0.00 ₫"}},{"$f":"SUMIFS(Chi_phí_phân_theo_khoản_mục[Số tiền trên séc],Chi_phí_phân_theo_khoản_mục[Mã sổ cái],Tóm_tắt_chi_phí_hàng_tháng[[#This Row],[Mã sổ cái]],Chi_phí_phân_theo_khoản_mục[Ngày lập hóa đơn],\">=\"&M$3,Chi_phí_phân_theo_khoản_mục[Ngày lập hóa đơn],\"<=\"&M$4)+SUMIFS(Khác[Số tiền trên séc],Khác[Mã sổ cái],Tóm_tắt_chi_phí_hàng_tháng[[#This Row],[Mã sổ cái]],Khác[Ngày khởi tạo yêu cầu séc],\">=\"&DATEVALUE(\"1 \"&Tóm_tắt_chi_phí_hàng_tháng[[#Headers],[Tháng Mười]]&\" \"&_NĂM),Khác[Ngày khởi tạo yêu cầu séc],\"<=\"&M$4)","v":{"v":0,"d":"0.00 ₫"}},{"$f":"SUMIFS(Chi_phí_phân_theo_khoản_mục[Số tiền trên séc],Chi_phí_phân_theo_khoản_mục[Mã sổ cái],Tóm_tắt_chi_phí_hàng_tháng[[#This Row],[Mã sổ cái]],Chi_phí_phân_theo_khoản_mục[Ngày lập hóa đơn],\">=\"&N$3,Chi_phí_phân_theo_khoản_mục[Ngày lập hóa đơn],\"<=\"&N$4)+SUMIFS(Khác[Số tiền trên séc],Khác[Mã sổ cái],Tóm_tắt_chi_phí_hàng_tháng[[#This Row],[Mã sổ cái]],Khác[Ngày khởi tạo yêu cầu séc],\">=\"&DATEVALUE(\"1 \"&Tóm_tắt_chi_phí_hàng_tháng[[#Headers],[Tháng Mười Một]]&\" \"&_NĂM),Khác[Ngày khởi tạo yêu cầu séc],\"<=\"&N$4)","v":{"v":0,"d":"0.00 ₫"}},{"$f":"SUMIFS(Chi_phí_phân_theo_khoản_mục[Số tiền trên séc],Chi_phí_phân_theo_khoản_mục[Mã sổ cái],Tóm_tắt_chi_phí_hàng_tháng[[#This Row],[Mã sổ cái]],Chi_phí_phân_theo_khoản_mục[Ngày lập hóa đơn],\">=\"&O$3,Chi_phí_phân_theo_khoản_mục[Ngày lập hóa đơn],\"<=\"&O$4)+SUMIFS(Khác[Số tiền trên séc],Khác[Mã sổ cái],Tóm_tắt_chi_phí_hàng_tháng[[#This Row],[Mã sổ cái]],Khác[Ngày khởi tạo yêu cầu séc],\">=\"&DATEVALUE(\"1 \"&Tóm_tắt_chi_phí_hàng_tháng[[#Headers],[Tháng Mười Hai]]&\" \"&_NĂM),Khác[Ngày khởi tạo yêu cầu séc],\"<=\"&O$4)","v":{"v":0,"d":"0.00 ₫"}},{"$f":"SUM(Tóm_tắt_chi_phí_hàng_tháng[[#This Row],[Tháng Giêng]:[Tháng Mười Hai]])","v":{"v":0,"d":"0.00 ₫"}}]
[null,4000,"Chi phí máy chủ",{"$f":"SUMIFS(Chi_phí_phân_theo_khoản_mục[Số tiền trên séc],Chi_phí_phân_theo_khoản_mục[Mã sổ cái],Tóm_tắt_chi_phí_hàng_tháng[[#This Row],[Mã sổ cái]],Chi_phí_phân_theo_khoản_mục[Ngày lập hóa đơn],\">=\"&D$3,Chi_phí_phân_theo_khoản_mục[Ngày lập hóa đơn],\"<=\"&D$4)+SUMIFS(Khác[Số tiền trên séc],Khác[Mã sổ cái],Tóm_tắt_chi_phí_hàng_tháng[[#This Row],[Mã sổ cái]],Khác[Ngày khởi tạo yêu cầu séc],\">=\"&DATEVALUE(\"1 \"&Tóm_tắt_chi_phí_hàng_tháng[[#Headers],[Tháng Giêng]]&\" \"&_NĂM),Khác[Ngày khởi tạo yêu cầu séc],\"<=\"&D$4)","v":{"v":0,"d":"0.00 ₫"}},{"$f":"SUMIFS(Chi_phí_phân_theo_khoản_mục[Số tiền trên séc],Chi_phí_phân_theo_khoản_mục[Mã sổ cái],Tóm_tắt_chi_phí_hàng_tháng[[#This Row],[Mã sổ cái]],Chi_phí_phân_theo_khoản_mục[Ngày lập hóa đơn],\">=\"&E$3,Chi_phí_phân_theo_khoản_mục[Ngày lập hóa đơn],\"<=\"&E$4)+SUMIFS(Khác[Số tiền trên séc],Khác[Mã sổ cái],Tóm_tắt_chi_phí_hàng_tháng[[#This Row],[Mã sổ cái]],Khác[Ngày khởi tạo yêu cầu séc],\">=\"&DATEVALUE(\"1 \"&Tóm_tắt_chi_phí_hàng_tháng[[#Headers],[Tháng Hai]]&\" \"&_NĂM),Khác[Ngày khởi tạo yêu cầu séc],\"<=\"&E$4)","v":{"v":0,"d":"0.00 ₫"}},{"$f":"SUMIFS(Chi_phí_phân_theo_khoản_mục[Số tiền trên séc],Chi_phí_phân_theo_khoản_mục[Mã sổ cái],Tóm_tắt_chi_phí_hàng_tháng[[#This Row],[Mã sổ cái]],Chi_phí_phân_theo_khoản_mục[Ngày lập hóa đơn],\">=\"&F$3,Chi_phí_phân_theo_khoản_mục[Ngày lập hóa đơn],\"<=\"&F$4)+SUMIFS(Khác[Số tiền trên séc],Khác[Mã sổ cái],Tóm_tắt_chi_phí_hàng_tháng[[#This Row],[Mã sổ cái]],Khác[Ngày khởi tạo yêu cầu séc],\">=\"&DATEVALUE(\"1 \"&Tóm_tắt_chi_phí_hàng_tháng[[#Headers],[Tháng Ba]]&\" \"&_NĂM),Khác[Ngày khởi tạo yêu cầu séc],\"<=\"&F$4)","v":{"v":0,"d":"0.00 ₫"}},{"$f":"SUMIFS(Chi_phí_phân_theo_khoản_mục[Số tiền trên séc],Chi_phí_phân_theo_khoản_mục[Mã sổ cái],Tóm_tắt_chi_phí_hàng_tháng[[#This Row],[Mã sổ cái]],Chi_phí_phân_theo_khoản_mục[Ngày lập hóa đơn],\">=\"&G$3,Chi_phí_phân_theo_khoản_mục[Ngày lập hóa đơn],\"<=\"&G$4)+SUMIFS(Khác[Số tiền trên séc],Khác[Mã sổ cái],Tóm_tắt_chi_phí_hàng_tháng[[#This Row],[Mã sổ cái]],Khác[Ngày khởi tạo yêu cầu séc],\">=\"&DATEVALUE(\"1 \"&Tóm_tắt_chi_phí_hàng_tháng[[#Headers],[Tháng Tư]]&\" \"&_NĂM),Khác[Ngày khởi tạo yêu cầu séc],\"<=\"&G$4)","v":{"v":0,"d":"0.00 ₫"}},{"$f":"SUMIFS(Chi_phí_phân_theo_khoản_mục[Số tiền trên séc],Chi_phí_phân_theo_khoản_mục[Mã sổ cái],Tóm_tắt_chi_phí_hàng_tháng[[#This Row],[Mã sổ cái]],Chi_phí_phân_theo_khoản_mục[Ngày lập hóa đơn],\">=\"&H$3,Chi_phí_phân_theo_khoản_mục[Ngày lập hóa đơn],\"<=\"&H$4)+SUMIFS(Khác[Số tiền trên séc],Khác[Mã sổ cái],Tóm_tắt_chi_phí_hàng_tháng[[#This Row],[Mã sổ cái]],Khác[Ngày khởi tạo yêu cầu séc],\">=\"&DATEVALUE(\"1 \"&Tóm_tắt_chi_phí_hàng_tháng[[#Headers],[Tháng Năm]]&\" \"&_NĂM),Khác[Ngày khởi tạo yêu cầu séc],\"<=\"&H$4)","v":{"v":0,"d":"0.00 ₫"}},{"$f":"SUMIFS(Chi_phí_phân_theo_khoản_mục[Số tiền trên séc],Chi_phí_phân_theo_khoản_mục[Mã sổ cái],Tóm_tắt_chi_phí_hàng_tháng[[#This Row],[Mã sổ cái]],Chi_phí_phân_theo_khoản_mục[Ngày lập hóa đơn],\">=\"&I$3,Chi_phí_phân_theo_khoản_mục[Ngày lập hóa đơn],\"<=\"&I$4)+SUMIFS(Khác[Số tiền trên séc],Khác[Mã sổ cái],Tóm_tắt_chi_phí_hàng_tháng[[#This Row],[Mã sổ cái]],Khác[Ngày khởi tạo yêu cầu séc],\">=\"&DATEVALUE(\"1 \"&Tóm_tắt_chi_phí_hàng_tháng[[#Headers],[Tháng Sáu]]&\" \"&_NĂM),Khác[Ngày khởi tạo yêu cầu séc],\"<=\"&I$4)","v":{"v":0,"d":"0.00 ₫"}},{"$f":"SUMIFS(Chi_phí_phân_theo_khoản_mục[Số tiền trên séc],Chi_phí_phân_theo_khoản_mục[Mã sổ cái],Tóm_tắt_chi_phí_hàng_tháng[[#This Row],[Mã sổ cái]],Chi_phí_phân_theo_khoản_mục[Ngày lập hóa đơn],\">=\"&J$3,Chi_phí_phân_theo_khoản_mục[Ngày lập hóa đơn],\"<=\"&J$4)+SUMIFS(Khác[Số tiền trên séc],Khác[Mã sổ cái],Tóm_tắt_chi_phí_hàng_tháng[[#This Row],[Mã sổ cái]],Khác[Ngày khởi tạo yêu cầu séc],\">=\"&DATEVALUE(\"1 \"&Tóm_tắt_chi_phí_hàng_tháng[[#Headers],[Tháng Bảy]]&\" \"&_NĂM),Khác[Ngày khởi tạo yêu cầu séc],\"<=\"&J$4)","v":{"v":0,"d":"0.00 ₫"}},{"$f":"SUMIFS(Chi_phí_phân_theo_khoản_mục[Số tiền trên séc],Chi_phí_phân_theo_khoản_mục[Mã sổ cái],Tóm_tắt_chi_phí_hàng_tháng[[#This Row],[Mã sổ cái]],Chi_phí_phân_theo_khoản_mục[Ngày lập hóa đơn],\">=\"&K$3,Chi_phí_phân_theo_khoản_mục[Ngày lập hóa đơn],\"<=\"&K$4)+SUMIFS(Khác[Số tiền trên séc],Khác[Mã sổ cái],Tóm_tắt_chi_phí_hàng_tháng[[#This Row],[Mã sổ cái]],Khác[Ngày khởi tạo yêu cầu séc],\">=\"&DATEVALUE(\"1 \"&Tóm_tắt_chi_phí_hàng_tháng[[#Headers],[Tháng Tám]]&\" \"&_NĂM),Khác[Ngày khởi tạo yêu cầu séc],\"<=\"&K$4)","v":{"v":0,"d":"0.00 ₫"}},{"$f":"SUMIFS(Chi_phí_phân_theo_khoản_mục[Số tiền trên séc],Chi_phí_phân_theo_khoản_mục[Mã sổ cái],Tóm_tắt_chi_phí_hàng_tháng[[#This Row],[Mã sổ cái]],Chi_phí_phân_theo_khoản_mục[Ngày lập hóa đơn],\">=\"&L$3,Chi_phí_phân_theo_khoản_mục[Ngày lập hóa đơn],\"<=\"&L$4)+SUMIFS(Khác[Số tiền trên séc],Khác[Mã sổ cái],Tóm_tắt_chi_phí_hàng_tháng[[#This Row],[Mã sổ cái]],Khác[Ngày khởi tạo yêu cầu séc],\">=\"&DATEVALUE(\"1 \"&Tóm_tắt_chi_phí_hàng_tháng[[#Headers],[Tháng Chín]]&\" \"&_NĂM),Khác[Ngày khởi tạo yêu cầu séc],\"<=\"&L$4)","v":{"v":0,"d":"0.00 ₫"}},{"$f":"SUMIFS(Chi_phí_phân_theo_khoản_mục[Số tiền trên séc],Chi_phí_phân_theo_khoản_mục[Mã sổ cái],Tóm_tắt_chi_phí_hàng_tháng[[#This Row],[Mã sổ cái]],Chi_phí_phân_theo_khoản_mục[Ngày lập hóa đơn],\">=\"&M$3,Chi_phí_phân_theo_khoản_mục[Ngày lập hóa đơn],\"<=\"&M$4)+SUMIFS(Khác[Số tiền trên séc],Khác[Mã sổ cái],Tóm_tắt_chi_phí_hàng_tháng[[#This Row],[Mã sổ cái]],Khác[Ngày khởi tạo yêu cầu séc],\">=\"&DATEVALUE(\"1 \"&Tóm_tắt_chi_phí_hàng_tháng[[#Headers],[Tháng Mười]]&\" \"&_NĂM),Khác[Ngày khởi tạo yêu cầu séc],\"<=\"&M$4)","v":{"v":0,"d":"0.00 ₫"}},{"$f":"SUMIFS(Chi_phí_phân_theo_khoản_mục[Số tiền trên séc],Chi_phí_phân_theo_khoản_mục[Mã sổ cái],Tóm_tắt_chi_phí_hàng_tháng[[#This Row],[Mã sổ cái]],Chi_phí_phân_theo_khoản_mục[Ngày lập hóa đơn],\">=\"&N$3,Chi_phí_phân_theo_khoản_mục[Ngày lập hóa đơn],\"<=\"&N$4)+SUMIFS(Khác[Số tiền trên séc],Khác[Mã sổ cái],Tóm_tắt_chi_phí_hàng_tháng[[#This Row],[Mã sổ cái]],Khác[Ngày khởi tạo yêu cầu séc],\">=\"&DATEVALUE(\"1 \"&Tóm_tắt_chi_phí_hàng_tháng[[#Headers],[Tháng Mười Một]]&\" \"&_NĂM),Khác[Ngày khởi tạo yêu cầu séc],\"<=\"&N$4)","v":{"v":0,"d":"0.00 ₫"}},{"$f":"SUMIFS(Chi_phí_phân_theo_khoản_mục[Số tiền trên séc],Chi_phí_phân_theo_khoản_mục[Mã sổ cái],Tóm_tắt_chi_phí_hàng_tháng[[#This Row],[Mã sổ cái]],Chi_phí_phân_theo_khoản_mục[Ngày lập hóa đơn],\">=\"&O$3,Chi_phí_phân_theo_khoản_mục[Ngày lập hóa đơn],\"<=\"&O$4)+SUMIFS(Khác[Số tiền trên séc],Khác[Mã sổ cái],Tóm_tắt_chi_phí_hàng_tháng[[#This Row],[Mã sổ cái]],Khác[Ngày khởi tạo yêu cầu séc],\">=\"&DATEVALUE(\"1 \"&Tóm_tắt_chi_phí_hàng_tháng[[#Headers],[Tháng Mười Hai]]&\" \"&_NĂM),Khác[Ngày khởi tạo yêu cầu séc],\"<=\"&O$4)","v":{"v":0,"d":"0.00 ₫"}},{"$f":"SUM(Tóm_tắt_chi_phí_hàng_tháng[[#This Row],[Tháng Giêng]:[Tháng Mười Hai]])","v":{"v":0,"d":"0.00 ₫"}}]
[null,5000,"Nhu yếu phẩm",{"$f":"SUMIFS(Chi_phí_phân_theo_khoản_mục[Số tiền trên séc],Chi_phí_phân_theo_khoản_mục[Mã sổ cái],Tóm_tắt_chi_phí_hàng_tháng[[#This Row],[Mã sổ cái]],Chi_phí_phân_theo_khoản_mục[Ngày lập hóa đơn],\">=\"&D$3,Chi_phí_phân_theo_khoản_mục[Ngày lập hóa đơn],\"<=\"&D$4)+SUMIFS(Khác[Số tiền trên séc],Khác[Mã sổ cái],Tóm_tắt_chi_phí_hàng_tháng[[#This Row],[Mã sổ cái]],Khác[Ngày khởi tạo yêu cầu séc],\">=\"&DATEVALUE(\"1 \"&Tóm_tắt_chi_phí_hàng_tháng[[#Headers],[Tháng Giêng]]&\" \"&_NĂM),Khác[Ngày khởi tạo yêu cầu séc],\"<=\"&D$4)","v":{"v":0,"d":"0.00 ₫"}},{"$f":"SUMIFS(Chi_phí_phân_theo_khoản_mục[Số tiền trên séc],Chi_phí_phân_theo_khoản_mục[Mã sổ cái],Tóm_tắt_chi_phí_hàng_tháng[[#This Row],[Mã sổ cái]],Chi_phí_phân_theo_khoản_mục[Ngày lập hóa đơn],\">=\"&E$3,Chi_phí_phân_theo_khoản_mục[Ngày lập hóa đơn],\"<=\"&E$4)+SUMIFS(Khác[Số tiền trên séc],Khác[Mã sổ cái],Tóm_tắt_chi_phí_hàng_tháng[[#This Row],[Mã sổ cái]],Khác[Ngày khởi tạo yêu cầu séc],\">=\"&DATEVALUE(\"1 \"&Tóm_tắt_chi_phí_hàng_tháng[[#Headers],[Tháng Hai]]&\" \"&_NĂM),Khác[Ngày khởi tạo yêu cầu séc],\"<=\"&E$4)","v":{"v":0,"d":"0.00 ₫"}},{"$f":"SUMIFS(Chi_phí_phân_theo_khoản_mục[Số tiền trên séc],Chi_phí_phân_theo_khoản_mục[Mã sổ cái],Tóm_tắt_chi_phí_hàng_tháng[[#This Row],[Mã sổ cái]],Chi_phí_phân_theo_khoản_mục[Ngày lập hóa đơn],\">=\"&F$3,Chi_phí_phân_theo_khoản_mục[Ngày lập hóa đơn],\"<=\"&F$4)+SUMIFS(Khác[Số tiền trên séc],Khác[Mã sổ cái],Tóm_tắt_chi_phí_hàng_tháng[[#This Row],[Mã sổ cái]],Khác[Ngày khởi tạo yêu cầu séc],\">=\"&DATEVALUE(\"1 \"&Tóm_tắt_chi_phí_hàng_tháng[[#Headers],[Tháng Ba]]&\" \"&_NĂM),Khác[Ngày khởi tạo yêu cầu séc],\"<=\"&F$4)","v":{"v":0,"d":"0.00 ₫"}},{"$f":"SUMIFS(Chi_phí_phân_theo_khoản_mục[Số tiền trên séc],Chi_phí_phân_theo_khoản_mục[Mã sổ cái],Tóm_tắt_chi_phí_hàng_tháng[[#This Row],[Mã sổ cái]],Chi_phí_phân_theo_khoản_mục[Ngày lập hóa đơn],\">=\"&G$3,Chi_phí_phân_theo_khoản_mục[Ngày lập hóa đơn],\"<=\"&G$4)+SUMIFS(Khác[Số tiền trên séc],Khác[Mã sổ cái],Tóm_tắt_chi_phí_hàng_tháng[[#This Row],[Mã sổ cái]],Khác[Ngày khởi tạo yêu cầu séc],\">=\"&DATEVALUE(\"1 \"&Tóm_tắt_chi_phí_hàng_tháng[[#Headers],[Tháng Tư]]&\" \"&_NĂM),Khác[Ngày khởi tạo yêu cầu séc],\"<=\"&G$4)","v":{"v":0,"d":"0.00 ₫"}},{"$f":"SUMIFS(Chi_phí_phân_theo_khoản_mục[Số tiền trên séc],Chi_phí_phân_theo_khoản_mục[Mã sổ cái],Tóm_tắt_chi_phí_hàng_tháng[[#This Row],[Mã sổ cái]],Chi_phí_phân_theo_khoản_mục[Ngày lập hóa đơn],\">=\"&H$3,Chi_phí_phân_theo_khoản_mục[Ngày lập hóa đơn],\"<=\"&H$4)+SUMIFS(Khác[Số tiền trên séc],Khác[Mã sổ cái],Tóm_tắt_chi_phí_hàng_tháng[[#This Row],[Mã sổ cái]],Khác[Ngày khởi tạo yêu cầu séc],\">=\"&DATEVALUE(\"1 \"&Tóm_tắt_chi_phí_hàng_tháng[[#Headers],[Tháng Năm]]&\" \"&_NĂM),Khác[Ngày khởi tạo yêu cầu séc],\"<=\"&H$4)","v":{"v":0,"d":"0.00 ₫"}},{"$f":"SUMIFS(Chi_phí_phân_theo_khoản_mục[Số tiền trên séc],Chi_phí_phân_theo_khoản_mục[Mã sổ cái],Tóm_tắt_chi_phí_hàng_tháng[[#This Row],[Mã sổ cái]],Chi_phí_phân_theo_khoản_mục[Ngày lập hóa đơn],\">=\"&I$3,Chi_phí_phân_theo_khoản_mục[Ngày lập hóa đơn],\"<=\"&I$4)+SUMIFS(Khác[Số tiền trên séc],Khác[Mã sổ cái],Tóm_tắt_chi_phí_hàng_tháng[[#This Row],[Mã sổ cái]],Khác[Ngày khởi tạo yêu cầu séc],\">=\"&DATEVALUE(\"1 \"&Tóm_tắt_chi_phí_hàng_tháng[[#Headers],[Tháng Sáu]]&\" \"&_NĂM),Khác[Ngày khởi tạo yêu cầu séc],\"<=\"&I$4)","v":{"v":0,"d":"0.00 ₫"}},{"$f":"SUMIFS(Chi_phí_phân_theo_khoản_mục[Số tiền trên séc],Chi_phí_phân_theo_khoản_mục[Mã sổ cái],Tóm_tắt_chi_phí_hàng_tháng[[#This Row],[Mã sổ cái]],Chi_phí_phân_theo_khoản_mục[Ngày lập hóa đơn],\">=\"&J$3,Chi_phí_phân_theo_khoản_mục[Ngày lập hóa đơn],\"<=\"&J$4)+SUMIFS(Khác[Số tiền trên séc],Khác[Mã sổ cái],Tóm_tắt_chi_phí_hàng_tháng[[#This Row],[Mã sổ cái]],Khác[Ngày khởi tạo yêu cầu séc],\">=\"&DATEVALUE(\"1 \"&Tóm_tắt_chi_phí_hàng_tháng[[#Headers],[Tháng Bảy]]&\" \"&_NĂM),Khác[Ngày khởi tạo yêu cầu séc],\"<=\"&J$4)","v":{"v":0,"d":"0.00 ₫"}},{"$f":"SUMIFS(Chi_phí_phân_theo_khoản_mục[Số tiền trên séc],Chi_phí_phân_theo_khoản_mục[Mã sổ cái],Tóm_tắt_chi_phí_hàng_tháng[[#This Row],[Mã sổ cái]],Chi_phí_phân_theo_khoản_mục[Ngày lập hóa đơn],\">=\"&K$3,Chi_phí_phân_theo_khoản_mục[Ngày lập hóa đơn],\"<=\"&K$4)+SUMIFS(Khác[Số tiền trên séc],Khác[Mã sổ cái],Tóm_tắt_chi_phí_hàng_tháng[[#This Row],[Mã sổ cái]],Khác[Ngày khởi tạo yêu cầu séc],\">=\"&DATEVALUE(\"1 \"&Tóm_tắt_chi_phí_hàng_tháng[[#Headers],[Tháng Tám]]&\" \"&_NĂM),Khác[Ngày khởi tạo yêu cầu séc],\"<=\"&K$4)","v":{"v":0,"d":"0.00 ₫"}},{"$f":"SUMIFS(Chi_phí_phân_theo_khoản_mục[Số tiền trên séc],Chi_phí_phân_theo_khoản_mục[Mã sổ cái],Tóm_tắt_chi_phí_hàng_tháng[[#This Row],[Mã sổ cái]],Chi_phí_phân_theo_khoản_mục[Ngày lập hóa đơn],\">=\"&L$3,Chi_phí_phân_theo_khoản_mục[Ngày lập hóa đơn],\"<=\"&L$4)+SUMIFS(Khác[Số tiền trên séc],Khác[Mã sổ cái],Tóm_tắt_chi_phí_hàng_tháng[[#This Row],[Mã sổ cái]],Khác[Ngày khởi tạo yêu cầu séc],\">=\"&DATEVALUE(\"1 \"&Tóm_tắt_chi_phí_hàng_tháng[[#Headers],[Tháng Chín]]&\" \"&_NĂM),Khác[Ngày khởi tạo yêu cầu séc],\"<=\"&L$4)","v":{"v":0,"d":"0.00 ₫"}},{"$f":"SUMIFS(Chi_phí_phân_theo_khoản_mục[Số tiền trên séc],Chi_phí_phân_theo_khoản_mục[Mã sổ cái],Tóm_tắt_chi_phí_hàng_tháng[[#This Row],[Mã sổ cái]],Chi_phí_phân_theo_khoản_mục[Ngày lập hóa đơn],\">=\"&M$3,Chi_phí_phân_theo_khoản_mục[Ngày lập hóa đơn],\"<=\"&M$4)+SUMIFS(Khác[Số tiền trên séc],Khác[Mã sổ cái],Tóm_tắt_chi_phí_hàng_tháng[[#This Row],[Mã sổ cái]],Khác[Ngày khởi tạo yêu cầu séc],\">=\"&DATEVALUE(\"1 \"&Tóm_tắt_chi_phí_hàng_tháng[[#Headers],[Tháng Mười]]&\" \"&_NĂM),Khác[Ngày khởi tạo yêu cầu séc],\"<=\"&M$4)","v":{"v":0,"d":"0.00 ₫"}},{"$f":"SUMIFS(Chi_phí_phân_theo_khoản_mục[Số tiền trên séc],Chi_phí_phân_theo_khoản_mục[Mã sổ cái],Tóm_tắt_chi_phí_hàng_tháng[[#This Row],[Mã sổ cái]],Chi_phí_phân_theo_khoản_mục[Ngày lập hóa đơn],\">=\"&N$3,Chi_phí_phân_theo_khoản_mục[Ngày lập hóa đơn],\"<=\"&N$4)+SUMIFS(Khác[Số tiền trên séc],Khác[Mã sổ cái],Tóm_tắt_chi_phí_hàng_tháng[[#This Row],[Mã sổ cái]],Khác[Ngày khởi tạo yêu cầu séc],\">=\"&DATEVALUE(\"1 \"&Tóm_tắt_chi_phí_hàng_tháng[[#Headers],[Tháng Mười Một]]&\" \"&_NĂM),Khác[Ngày khởi tạo yêu cầu séc],\"<=\"&N$4)","v":{"v":0,"d":"0.00 ₫"}},{"$f":"SUMIFS(Chi_phí_phân_theo_khoản_mục[Số tiền trên séc],Chi_phí_phân_theo_khoản_mục[Mã sổ cái],Tóm_tắt_chi_phí_hàng_tháng[[#This Row],[Mã sổ cái]],Chi_phí_phân_theo_khoản_mục[Ngày lập hóa đơn],\">=\"&O$3,Chi_phí_phân_theo_khoản_mục[Ngày lập hóa đơn],\"<=\"&O$4)+SUMIFS(Khác[Số tiền trên séc],Khác[Mã sổ cái],Tóm_tắt_chi_phí_hàng_tháng[[#This Row],[Mã sổ cái]],Khác[Ngày khởi tạo yêu cầu séc],\">=\"&DATEVALUE(\"1 \"&Tóm_tắt_chi_phí_hàng_tháng[[#Headers],[Tháng Mười Hai]]&\" \"&_NĂM),Khác[Ngày khởi tạo yêu cầu séc],\"<=\"&O$4)","v":{"v":0,"d":"0.00 ₫"}},{"$f":"SUM(Tóm_tắt_chi_phí_hàng_tháng[[#This Row],[Tháng Giêng]:[Tháng Mười Hai]])","v":{"v":0,"d":"0.00 ₫"}}]
[null,6000,"Chi phí máy khách",{"$f":"SUMIFS(Chi_phí_phân_theo_khoản_mục[Số tiền trên séc],Chi_phí_phân_theo_khoản_mục[Mã sổ cái],Tóm_tắt_chi_phí_hàng_tháng[[#This Row],[Mã sổ cái]],Chi_phí_phân_theo_khoản_mục[Ngày lập hóa đơn],\">=\"&D$3,Chi_phí_phân_theo_khoản_mục[Ngày lập hóa đơn],\"<=\"&D$4)+SUMIFS(Khác[Số tiền trên séc],Khác[Mã sổ cái],Tóm_tắt_chi_phí_hàng_tháng[[#This Row],[Mã sổ cái]],Khác[Ngày khởi tạo yêu cầu séc],\">=\"&DATEVALUE(\"1 \"&Tóm_tắt_chi_phí_hàng_tháng[[#Headers],[Tháng Giêng]]&\" \"&_NĂM),Khác[Ngày khởi tạo yêu cầu séc],\"<=\"&D$4)","v":{"v":0,"d":"0.00 ₫"}},{"$f":"SUMIFS(Chi_phí_phân_theo_khoản_mục[Số tiền trên séc],Chi_phí_phân_theo_khoản_mục[Mã sổ cái],Tóm_tắt_chi_phí_hàng_tháng[[#This Row],[Mã sổ cái]],Chi_phí_phân_theo_khoản_mục[Ngày lập hóa đơn],\">=\"&E$3,Chi_phí_phân_theo_khoản_mục[Ngày lập hóa đơn],\"<=\"&E$4)+SUMIFS(Khác[Số tiền trên séc],Khác[Mã sổ cái],Tóm_tắt_chi_phí_hàng_tháng[[#This Row],[Mã sổ cái]],Khác[Ngày khởi tạo yêu cầu séc],\">=\"&DATEVALUE(\"1 \"&Tóm_tắt_chi_phí_hàng_tháng[[#Headers],[Tháng Hai]]&\" \"&_NĂM),Khác[Ngày khởi tạo yêu cầu séc],\"<=\"&E$4)","v":{"v":0,"d":"0.00 ₫"}},{"$f":"SUMIFS(Chi_phí_phân_theo_khoản_mục[Số tiền trên séc],Chi_phí_phân_theo_khoản_mục[Mã sổ cái],Tóm_tắt_chi_phí_hàng_tháng[[#This Row],[Mã sổ cái]],Chi_phí_phân_theo_khoản_mục[Ngày lập hóa đơn],\">=\"&F$3,Chi_phí_phân_theo_khoản_mục[Ngày lập hóa đơn],\"<=\"&F$4)+SUMIFS(Khác[Số tiền trên séc],Khác[Mã sổ cái],Tóm_tắt_chi_phí_hàng_tháng[[#This Row],[Mã sổ cái]],Khác[Ngày khởi tạo yêu cầu séc],\">=\"&DATEVALUE(\"1 \"&Tóm_tắt_chi_phí_hàng_tháng[[#Headers],[Tháng Ba]]&\" \"&_NĂM),Khác[Ngày khởi tạo yêu cầu séc],\"<=\"&F$4)","v":{"v":0,"d":"0.00 ₫"}},{"$f":"SUMIFS(Chi_phí_phân_theo_khoản_mục[Số tiền trên séc],Chi_phí_phân_theo_khoản_mục[Mã sổ cái],Tóm_tắt_chi_phí_hàng_tháng[[#This Row],[Mã sổ cái]],Chi_phí_phân_theo_khoản_mục[Ngày lập hóa đơn],\">=\"&G$3,Chi_phí_phân_theo_khoản_mục[Ngày lập hóa đơn],\"<=\"&G$4)+SUMIFS(Khác[Số tiền trên séc],Khác[Mã sổ cái],Tóm_tắt_chi_phí_hàng_tháng[[#This Row],[Mã sổ cái]],Khác[Ngày khởi tạo yêu cầu séc],\">=\"&DATEVALUE(\"1 \"&Tóm_tắt_chi_phí_hàng_tháng[[#Headers],[Tháng Tư]]&\" \"&_NĂM),Khác[Ngày khởi tạo yêu cầu séc],\"<=\"&G$4)","v":{"v":0,"d":"0.00 ₫"}},{"$f":"SUMIFS(Chi_phí_phân_theo_khoản_mục[Số tiền trên séc],Chi_phí_phân_theo_khoản_mục[Mã sổ cái],Tóm_tắt_chi_phí_hàng_tháng[[#This Row],[Mã sổ cái]],Chi_phí_phân_theo_khoản_mục[Ngày lập hóa đơn],\">=\"&H$3,Chi_phí_phân_theo_khoản_mục[Ngày lập hóa đơn],\"<=\"&H$4)+SUMIFS(Khác[Số tiền trên séc],Khác[Mã sổ cái],Tóm_tắt_chi_phí_hàng_tháng[[#This Row],[Mã sổ cái]],Khác[Ngày khởi tạo yêu cầu séc],\">=\"&DATEVALUE(\"1 \"&Tóm_tắt_chi_phí_hàng_tháng[[#Headers],[Tháng Năm]]&\" \"&_NĂM),Khác[Ngày khởi tạo yêu cầu séc],\"<=\"&H$4)","v":{"v":0,"d":"0.00 ₫"}},{"$f":"SUMIFS(Chi_phí_phân_theo_khoản_mục[Số tiền trên séc],Chi_phí_phân_theo_khoản_mục[Mã sổ cái],Tóm_tắt_chi_phí_hàng_tháng[[#This Row],[Mã sổ cái]],Chi_phí_phân_theo_khoản_mục[Ngày lập hóa đơn],\">=\"&I$3,Chi_phí_phân_theo_khoản_mục[Ngày lập hóa đơn],\"<=\"&I$4)+SUMIFS(Khác[Số tiền trên séc],Khác[Mã sổ cái],Tóm_tắt_chi_phí_hàng_tháng[[#This Row],[Mã sổ cái]],Khác[Ngày khởi tạo yêu cầu séc],\">=\"&DATEVALUE(\"1 \"&Tóm_tắt_chi_phí_hàng_tháng[[#Headers],[Tháng Sáu]]&\" \"&_NĂM),Khác[Ngày khởi tạo yêu cầu séc],\"<=\"&I$4)","v":{"v":0,"d":"0.00 ₫"}},{"$f":"SUMIFS(Chi_phí_phân_theo_khoản_mục[Số tiền trên séc],Chi_phí_phân_theo_khoản_mục[Mã sổ cái],Tóm_tắt_chi_phí_hàng_tháng[[#This Row],[Mã sổ cái]],Chi_phí_phân_theo_khoản_mục[Ngày lập hóa đơn],\">=\"&J$3,Chi_phí_phân_theo_khoản_mục[Ngày lập hóa đơn],\"<=\"&J$4)+SUMIFS(Khác[Số tiền trên séc],Khác[Mã sổ cái],Tóm_tắt_chi_phí_hàng_tháng[[#This Row],[Mã sổ cái]],Khác[Ngày khởi tạo yêu cầu séc],\">=\"&DATEVALUE(\"1 \"&Tóm_tắt_chi_phí_hàng_tháng[[#Headers],[Tháng Bảy]]&\" \"&_NĂM),Khác[Ngày khởi tạo yêu cầu séc],\"<=\"&J$4)","v":{"v":0,"d":"0.00 ₫"}},{"$f":"SUMIFS(Chi_phí_phân_theo_khoản_mục[Số tiền trên séc],Chi_phí_phân_theo_khoản_mục[Mã sổ cái],Tóm_tắt_chi_phí_hàng_tháng[[#This Row],[Mã sổ cái]],Chi_phí_phân_theo_khoản_mục[Ngày lập hóa đơn],\">=\"&K$3,Chi_phí_phân_theo_khoản_mục[Ngày lập hóa đơn],\"<=\"&K$4)+SUMIFS(Khác[Số tiền trên séc],Khác[Mã sổ cái],Tóm_tắt_chi_phí_hàng_tháng[[#This Row],[Mã sổ cái]],Khác[Ngày khởi tạo yêu cầu séc],\">=\"&DATEVALUE(\"1 \"&Tóm_tắt_chi_phí_hàng_tháng[[#Headers],[Tháng Tám]]&\" \"&_NĂM),Khác[Ngày khởi tạo yêu cầu séc],\"<=\"&K$4)","v":{"v":0,"d":"0.00 ₫"}},{"$f":"SUMIFS(Chi_phí_phân_theo_khoản_mục[Số tiền trên séc],Chi_phí_phân_theo_khoản_mục[Mã sổ cái],Tóm_tắt_chi_phí_hàng_tháng[[#This Row],[Mã sổ cái]],Chi_phí_phân_theo_khoản_mục[Ngày lập hóa đơn],\">=\"&L$3,Chi_phí_phân_theo_khoản_mục[Ngày lập hóa đơn],\"<=\"&L$4)+SUMIFS(Khác[Số tiền trên séc],Khác[Mã sổ cái],Tóm_tắt_chi_phí_hàng_tháng[[#This Row],[Mã sổ cái]],Khác[Ngày khởi tạo yêu cầu séc],\">=\"&DATEVALUE(\"1 \"&Tóm_tắt_chi_phí_hàng_tháng[[#Headers],[Tháng Chín]]&\" \"&_NĂM),Khác[Ngày khởi tạo yêu cầu séc],\"<=\"&L$4)","v":{"v":0,"d":"0.00 ₫"}},{"$f":"SUMIFS(Chi_phí_phân_theo_khoản_mục[Số tiền trên séc],Chi_phí_phân_theo_khoản_mục[Mã sổ cái],Tóm_tắt_chi_phí_hàng_tháng[[#This Row],[Mã sổ cái]],Chi_phí_phân_theo_khoản_mục[Ngày lập hóa đơn],\">=\"&M$3,Chi_phí_phân_theo_khoản_mục[Ngày lập hóa đơn],\"<=\"&M$4)+SUMIFS(Khác[Số tiền trên séc],Khác[Mã sổ cái],Tóm_tắt_chi_phí_hàng_tháng[[#This Row],[Mã sổ cái]],Khác[Ngày khởi tạo yêu cầu séc],\">=\"&DATEVALUE(\"1 \"&Tóm_tắt_chi_phí_hàng_tháng[[#Headers],[Tháng Mười]]&\" \"&_NĂM),Khác[Ngày khởi tạo yêu cầu séc],\"<=\"&M$4)","v":{"v":0,"d":"0.00 ₫"}},{"$f":"SUMIFS(Chi_phí_phân_theo_khoản_mục[Số tiền trên séc],Chi_phí_phân_theo_khoản_mục[Mã sổ cái],Tóm_tắt_chi_phí_hàng_tháng[[#This Row],[Mã sổ cái]],Chi_phí_phân_theo_khoản_mục[Ngày lập hóa đơn],\">=\"&N$3,Chi_phí_phân_theo_khoản_mục[Ngày lập hóa đơn],\"<=\"&N$4)+SUMIFS(Khác[Số tiền trên séc],Khác[Mã sổ cái],Tóm_tắt_chi_phí_hàng_tháng[[#This Row],[Mã sổ cái]],Khác[Ngày khởi tạo yêu cầu séc],\">=\"&DATEVALUE(\"1 \"&Tóm_tắt_chi_phí_hàng_tháng[[#Headers],[Tháng Mười Một]]&\" \"&_NĂM),Khác[Ngày khởi tạo yêu cầu séc],\"<=\"&N$4)","v":{"v":0,"d":"0.00 ₫"}},{"$f":"SUMIFS(Chi_phí_phân_theo_khoản_mục[Số tiền trên séc],Chi_phí_phân_theo_khoản_mục[Mã sổ cái],Tóm_tắt_chi_phí_hàng_tháng[[#This Row],[Mã sổ cái]],Chi_phí_phân_theo_khoản_mục[Ngày lập hóa đơn],\">=\"&O$3,Chi_phí_phân_theo_khoản_mục[Ngày lập hóa đơn],\"<=\"&O$4)+SUMIFS(Khác[Số tiền trên séc],Khác[Mã sổ cái],Tóm_tắt_chi_phí_hàng_tháng[[#This Row],[Mã sổ cái]],Khác[Ngày khởi tạo yêu cầu séc],\">=\"&DATEVALUE(\"1 \"&Tóm_tắt_chi_phí_hàng_tháng[[#Headers],[Tháng Mười Hai]]&\" \"&_NĂM),Khác[Ngày khởi tạo yêu cầu séc],\"<=\"&O$4)","v":{"v":0,"d":"0.00 ₫"}},{"$f":"SUM(Tóm_tắt_chi_phí_hàng_tháng[[#This Row],[Tháng Giêng]:[Tháng Mười Hai]])","v":{"v":0,"d":"0.00 ₫"}}]
[null,7000,"Máy tính",{"$f":"SUMIFS(Chi_phí_phân_theo_khoản_mục[Số tiền trên séc],Chi_phí_phân_theo_khoản_mục[Mã sổ cái],Tóm_tắt_chi_phí_hàng_tháng[[#This Row],[Mã sổ cái]],Chi_phí_phân_theo_khoản_mục[Ngày lập hóa đơn],\">=\"&D$3,Chi_phí_phân_theo_khoản_mục[Ngày lập hóa đơn],\"<=\"&D$4)+SUMIFS(Khác[Số tiền trên séc],Khác[Mã sổ cái],Tóm_tắt_chi_phí_hàng_tháng[[#This Row],[Mã sổ cái]],Khác[Ngày khởi tạo yêu cầu séc],\">=\"&DATEVALUE(\"1 \"&Tóm_tắt_chi_phí_hàng_tháng[[#Headers],[Tháng Giêng]]&\" \"&_NĂM),Khác[Ngày khởi tạo yêu cầu séc],\"<=\"&D$4)","v":{"v":0,"d":"0.00 ₫"}},{"$f":"SUMIFS(Chi_phí_phân_theo_khoản_mục[Số tiền trên séc],Chi_phí_phân_theo_khoản_mục[Mã sổ cái],Tóm_tắt_chi_phí_hàng_tháng[[#This Row],[Mã sổ cái]],Chi_phí_phân_theo_khoản_mục[Ngày lập hóa đơn],\">=\"&E$3,Chi_phí_phân_theo_khoản_mục[Ngày lập hóa đơn],\"<=\"&E$4)+SUMIFS(Khác[Số tiền trên séc],Khác[Mã sổ cái],Tóm_tắt_chi_phí_hàng_tháng[[#This Row],[Mã sổ cái]],Khác[Ngày khởi tạo yêu cầu séc],\">=\"&DATEVALUE(\"1 \"&Tóm_tắt_chi_phí_hàng_tháng[[#Headers],[Tháng Hai]]&\" \"&_NĂM),Khác[Ngày khởi tạo yêu cầu séc],\"<=\"&E$4)","v":{"v":0,"d":"0.00 ₫"}},{"$f":"SUMIFS(Chi_phí_phân_theo_khoản_mục[Số tiền trên séc],Chi_phí_phân_theo_khoản_mục[Mã sổ cái],Tóm_tắt_chi_phí_hàng_tháng[[#This Row],[Mã sổ cái]],Chi_phí_phân_theo_khoản_mục[Ngày lập hóa đơn],\">=\"&F$3,Chi_phí_phân_theo_khoản_mục[Ngày lập hóa đơn],\"<=\"&F$4)+SUMIFS(Khác[Số tiền trên séc],Khác[Mã sổ cái],Tóm_tắt_chi_phí_hàng_tháng[[#This Row],[Mã sổ cái]],Khác[Ngày khởi tạo yêu cầu séc],\">=\"&DATEVALUE(\"1 \"&Tóm_tắt_chi_phí_hàng_tháng[[#Headers],[Tháng Ba]]&\" \"&_NĂM),Khác[Ngày khởi tạo yêu cầu séc],\"<=\"&F$4)","v":{"v":0,"d":"0.00 ₫"}},{"$f":"SUMIFS(Chi_phí_phân_theo_khoản_mục[Số tiền trên séc],Chi_phí_phân_theo_khoản_mục[Mã sổ cái],Tóm_tắt_chi_phí_hàng_tháng[[#This Row],[Mã sổ cái]],Chi_phí_phân_theo_khoản_mục[Ngày lập hóa đơn],\">=\"&G$3,Chi_phí_phân_theo_khoản_mục[Ngày lập hóa đơn],\"<=\"&G$4)+SUMIFS(Khác[Số tiền trên séc],Khác[Mã sổ cái],Tóm_tắt_chi_phí_hàng_tháng[[#This Row],[Mã sổ cái]],Khác[Ngày khởi tạo yêu cầu séc],\">=\"&DATEVALUE(\"1 \"&Tóm_tắt_chi_phí_hàng_tháng[[#Headers],[Tháng Tư]]&\" \"&_NĂM),Khác[Ngày khởi tạo yêu cầu séc],\"<=\"&G$4)","v":{"v":0,"d":"0.00 ₫"}},{"$f":"SUMIFS(Chi_phí_phân_theo_khoản_mục[Số tiền trên séc],Chi_phí_phân_theo_khoản_mục[Mã sổ cái],Tóm_tắt_chi_phí_hàng_tháng[[#This Row],[Mã sổ cái]],Chi_phí_phân_theo_khoản_mục[Ngày lập hóa đơn],\">=\"&H$3,Chi_phí_phân_theo_khoản_mục[Ngày lập hóa đơn],\"<=\"&H$4)+SUMIFS(Khác[Số tiền trên séc],Khác[Mã sổ cái],Tóm_tắt_chi_phí_hàng_tháng[[#This Row],[Mã sổ cái]],Khác[Ngày khởi tạo yêu cầu séc],\">=\"&DATEVALUE(\"1 \"&Tóm_tắt_chi_phí_hàng_tháng[[#Headers],[Tháng Năm]]&\" \"&_NĂM),Khác[Ngày khởi tạo yêu cầu séc],\"<=\"&H$4)","v":{"v":0,"d":"0.00 ₫"}},{"$f":"SUMIFS(Chi_phí_phân_theo_khoản_mục[Số tiền trên séc],Chi_phí_phân_theo_khoản_mục[Mã sổ cái],Tóm_tắt_chi_phí_hàng_tháng[[#This Row],[Mã sổ cái]],Chi_phí_phân_theo_khoản_mục[Ngày lập hóa đơn],\">=\"&I$3,Chi_phí_phân_theo_khoản_mục[Ngày lập hóa đơn],\"<=\"&I$4)+SUMIFS(Khác[Số tiền trên séc],Khác[Mã sổ cái],Tóm_tắt_chi_phí_hàng_tháng[[#This Row],[Mã sổ cái]],Khác[Ngày khởi tạo yêu cầu séc],\">=\"&DATEVALUE(\"1 \"&Tóm_tắt_chi_phí_hàng_tháng[[#Headers],[Tháng Sáu]]&\" \"&_NĂM),Khác[Ngày khởi tạo yêu cầu séc],\"<=\"&I$4)","v":{"v":0,"d":"0.00 ₫"}},{"$f":"SUMIFS(Chi_phí_phân_theo_khoản_mục[Số tiền trên séc],Chi_phí_phân_theo_khoản_mục[Mã sổ cái],Tóm_tắt_chi_phí_hàng_tháng[[#This Row],[Mã sổ cái]],Chi_phí_phân_theo_khoản_mục[Ngày lập hóa đơn],\">=\"&J$3,Chi_phí_phân_theo_khoản_mục[Ngày lập hóa đơn],\"<=\"&J$4)+SUMIFS(Khác[Số tiền trên séc],Khác[Mã sổ cái],Tóm_tắt_chi_phí_hàng_tháng[[#This Row],[Mã sổ cái]],Khác[Ngày khởi tạo yêu cầu séc],\">=\"&DATEVALUE(\"1 \"&Tóm_tắt_chi_phí_hàng_tháng[[#Headers],[Tháng Bảy]]&\" \"&_NĂM),Khác[Ngày khởi tạo yêu cầu séc],\"<=\"&J$4)","v":{"v":0,"d":"0.00 ₫"}},{"$f":"SUMIFS(Chi_phí_phân_theo_khoản_mục[Số tiền trên séc],Chi_phí_phân_theo_khoản_mục[Mã sổ cái],Tóm_tắt_chi_phí_hàng_tháng[[#This Row],[Mã sổ cái]],Chi_phí_phân_theo_khoản_mục[Ngày lập hóa đơn],\">=\"&K$3,Chi_phí_phân_theo_khoản_mục[Ngày lập hóa đơn],\"<=\"&K$4)+SUMIFS(Khác[Số tiền trên séc],Khác[Mã sổ cái],Tóm_tắt_chi_phí_hàng_tháng[[#This Row],[Mã sổ cái]],Khác[Ngày khởi tạo yêu cầu séc],\">=\"&DATEVALUE(\"1 \"&Tóm_tắt_chi_phí_hàng_tháng[[#Headers],[Tháng Tám]]&\" \"&_NĂM),Khác[Ngày khởi tạo yêu cầu séc],\"<=\"&K$4)","v":{"v":0,"d":"0.00 ₫"}},{"$f":"SUMIFS(Chi_phí_phân_theo_khoản_mục[Số tiền trên séc],Chi_phí_phân_theo_khoản_mục[Mã sổ cái],Tóm_tắt_chi_phí_hàng_tháng[[#This Row],[Mã sổ cái]],Chi_phí_phân_theo_khoản_mục[Ngày lập hóa đơn],\">=\"&L$3,Chi_phí_phân_theo_khoản_mục[Ngày lập hóa đơn],\"<=\"&L$4)+SUMIFS(Khác[Số tiền trên séc],Khác[Mã sổ cái],Tóm_tắt_chi_phí_hàng_tháng[[#This Row],[Mã sổ cái]],Khác[Ngày khởi tạo yêu cầu séc],\">=\"&DATEVALUE(\"1 \"&Tóm_tắt_chi_phí_hàng_tháng[[#Headers],[Tháng Chín]]&\" \"&_NĂM),Khác[Ngày khởi tạo yêu cầu séc],\"<=\"&L$4)","v":{"v":0,"d":"0.00 ₫"}},{"$f":"SUMIFS(Chi_phí_phân_theo_khoản_mục[Số tiền trên séc],Chi_phí_phân_theo_khoản_mục[Mã sổ cái],Tóm_tắt_chi_phí_hàng_tháng[[#This Row],[Mã sổ cái]],Chi_phí_phân_theo_khoản_mục[Ngày lập hóa đơn],\">=\"&M$3,Chi_phí_phân_theo_khoản_mục[Ngày lập hóa đơn],\"<=\"&M$4)+SUMIFS(Khác[Số tiền trên séc],Khác[Mã sổ cái],Tóm_tắt_chi_phí_hàng_tháng[[#This Row],[Mã sổ cái]],Khác[Ngày khởi tạo yêu cầu séc],\">=\"&DATEVALUE(\"1 \"&Tóm_tắt_chi_phí_hàng_tháng[[#Headers],[Tháng Mười]]&\" \"&_NĂM),Khác[Ngày khởi tạo yêu cầu séc],\"<=\"&M$4)","v":{"v":0,"d":"0.00 ₫"}},{"$f":"SUMIFS(Chi_phí_phân_theo_khoản_mục[Số tiền trên séc],Chi_phí_phân_theo_khoản_mục[Mã sổ cái],Tóm_tắt_chi_phí_hàng_tháng[[#This Row],[Mã sổ cái]],Chi_phí_phân_theo_khoản_mục[Ngày lập hóa đơn],\">=\"&N$3,Chi_phí_phân_theo_khoản_mục[Ngày lập hóa đơn],\"<=\"&N$4)+SUMIFS(Khác[Số tiền trên séc],Khác[Mã sổ cái],Tóm_tắt_chi_phí_hàng_tháng[[#This Row],[Mã sổ cái]],Khác[Ngày khởi tạo yêu cầu séc],\">=\"&DATEVALUE(\"1 \"&Tóm_tắt_chi_phí_hàng_tháng[[#Headers],[Tháng Mười Một]]&\" \"&_NĂM),Khác[Ngày khởi tạo yêu cầu séc],\"<=\"&N$4)","v":{"v":0,"d":"0.00 ₫"}},{"$f":"SUMIFS(Chi_phí_phân_theo_khoản_mục[Số tiền trên séc],Chi_phí_phân_theo_khoản_mục[Mã sổ cái],Tóm_tắt_chi_phí_hàng_tháng[[#This Row],[Mã sổ cái]],Chi_phí_phân_theo_khoản_mục[Ngày lập hóa đơn],\">=\"&O$3,Chi_phí_phân_theo_khoản_mục[Ngày lập hóa đơn],\"<=\"&O$4)+SUMIFS(Khác[Số tiền trên séc],Khác[Mã sổ cái],Tóm_tắt_chi_phí_hàng_tháng[[#This Row],[Mã sổ cái]],Khác[Ngày khởi tạo yêu cầu séc],\">=\"&DATEVALUE(\"1 \"&Tóm_tắt_chi_phí_hàng_tháng[[#Headers],[Tháng Mười Hai]]&\" \"&_NĂM),Khác[Ngày khởi tạo yêu cầu séc],\"<=\"&O$4)","v":{"v":0,"d":"0.00 ₫"}},{"$f":"SUM(Tóm_tắt_chi_phí_hàng_tháng[[#This Row],[Tháng Giêng]:[Tháng Mười Hai]])","v":{"v":0,"d":"0.00 ₫"}}]
[null,8000,"Gói y tế",{"$f":"SUMIFS(Chi_phí_phân_theo_khoản_mục[Số tiền trên séc],Chi_phí_phân_theo_khoản_mục[Mã sổ cái],Tóm_tắt_chi_phí_hàng_tháng[[#This Row],[Mã sổ cái]],Chi_phí_phân_theo_khoản_mục[Ngày lập hóa đơn],\">=\"&D$3,Chi_phí_phân_theo_khoản_mục[Ngày lập hóa đơn],\"<=\"&D$4)+SUMIFS(Khác[Số tiền trên séc],Khác[Mã sổ cái],Tóm_tắt_chi_phí_hàng_tháng[[#This Row],[Mã sổ cái]],Khác[Ngày khởi tạo yêu cầu séc],\">=\"&DATEVALUE(\"1 \"&Tóm_tắt_chi_phí_hàng_tháng[[#Headers],[Tháng Giêng]]&\" \"&_NĂM),Khác[Ngày khởi tạo yêu cầu séc],\"<=\"&D$4)","v":{"v":0,"d":"0.00 ₫"}},{"$f":"SUMIFS(Chi_phí_phân_theo_khoản_mục[Số tiền trên séc],Chi_phí_phân_theo_khoản_mục[Mã sổ cái],Tóm_tắt_chi_phí_hàng_tháng[[#This Row],[Mã sổ cái]],Chi_phí_phân_theo_khoản_mục[Ngày lập hóa đơn],\">=\"&E$3,Chi_phí_phân_theo_khoản_mục[Ngày lập hóa đơn],\"<=\"&E$4)+SUMIFS(Khác[Số tiền trên séc],Khác[Mã sổ cái],Tóm_tắt_chi_phí_hàng_tháng[[#This Row],[Mã sổ cái]],Khác[Ngày khởi tạo yêu cầu séc],\">=\"&DATEVALUE(\"1 \"&Tóm_tắt_chi_phí_hàng_tháng[[#Headers],[Tháng Hai]]&\" \"&_NĂM),Khác[Ngày khởi tạo yêu cầu séc],\"<=\"&E$4)","v":{"v":0,"d":"0.00 ₫"}},{"$f":"SUMIFS(Chi_phí_phân_theo_khoản_mục[Số tiền trên séc],Chi_phí_phân_theo_khoản_mục[Mã sổ cái],Tóm_tắt_chi_phí_hàng_tháng[[#This Row],[Mã sổ cái]],Chi_phí_phân_theo_khoản_mục[Ngày lập hóa đơn],\">=\"&F$3,Chi_phí_phân_theo_khoản_mục[Ngày lập hóa đơn],\"<=\"&F$4)+SUMIFS(Khác[Số tiền trên séc],Khác[Mã sổ cái],Tóm_tắt_chi_phí_hàng_tháng[[#This Row],[Mã sổ cái]],Khác[Ngày khởi tạo yêu cầu séc],\">=\"&DATEVALUE(\"1 \"&Tóm_tắt_chi_phí_hàng_tháng[[#Headers],[Tháng Ba]]&\" \"&_NĂM),Khác[Ngày khởi tạo yêu cầu séc],\"<=\"&F$4)","v":{"v":0,"d":"0.00 ₫"}},{"$f":"SUMIFS(Chi_phí_phân_theo_khoản_mục[Số tiền trên séc],Chi_phí_phân_theo_khoản_mục[Mã sổ cái],Tóm_tắt_chi_phí_hàng_tháng[[#This Row],[Mã sổ cái]],Chi_phí_phân_theo_khoản_mục[Ngày lập hóa đơn],\">=\"&G$3,Chi_phí_phân_theo_khoản_mục[Ngày lập hóa đơn],\"<=\"&G$4)+SUMIFS(Khác[Số tiền trên séc],Khác[Mã sổ cái],Tóm_tắt_chi_phí_hàng_tháng[[#This Row],[Mã sổ cái]],Khác[Ngày khởi tạo yêu cầu séc],\">=\"&DATEVALUE(\"1 \"&Tóm_tắt_chi_phí_hàng_tháng[[#Headers],[Tháng Tư]]&\" \"&_NĂM),Khác[Ngày khởi tạo yêu cầu séc],\"<=\"&G$4)","v":{"v":0,"d":"0.00 ₫"}},{"$f":"SUMIFS(Chi_phí_phân_theo_khoản_mục[Số tiền trên séc],Chi_phí_phân_theo_khoản_mục[Mã sổ cái],Tóm_tắt_chi_phí_hàng_tháng[[#This Row],[Mã sổ cái]],Chi_phí_phân_theo_khoản_mục[Ngày lập hóa đơn],\">=\"&H$3,Chi_phí_phân_theo_khoản_mục[Ngày lập hóa đơn],\"<=\"&H$4)+SUMIFS(Khác[Số tiền trên séc],Khác[Mã sổ cái],Tóm_tắt_chi_phí_hàng_tháng[[#This Row],[Mã sổ cái]],Khác[Ngày khởi tạo yêu cầu séc],\">=\"&DATEVALUE(\"1 \"&Tóm_tắt_chi_phí_hàng_tháng[[#Headers],[Tháng Năm]]&\" \"&_NĂM),Khác[Ngày khởi tạo yêu cầu séc],\"<=\"&H$4)","v":{"v":0,"d":"0.00 ₫"}},{"$f":"SUMIFS(Chi_phí_phân_theo_khoản_mục[Số tiền trên séc],Chi_phí_phân_theo_khoản_mục[Mã sổ cái],Tóm_tắt_chi_phí_hàng_tháng[[#This Row],[Mã sổ cái]],Chi_phí_phân_theo_khoản_mục[Ngày lập hóa đơn],\">=\"&I$3,Chi_phí_phân_theo_khoản_mục[Ngày lập hóa đơn],\"<=\"&I$4)+SUMIFS(Khác[Số tiền trên séc],Khác[Mã sổ cái],Tóm_tắt_chi_phí_hàng_tháng[[#This Row],[Mã sổ cái]],Khác[Ngày khởi tạo yêu cầu séc],\">=\"&DATEVALUE(\"1 \"&Tóm_tắt_chi_phí_hàng_tháng[[#Headers],[Tháng Sáu]]&\" \"&_NĂM),Khác[Ngày khởi tạo yêu cầu séc],\"<=\"&I$4)","v":{"v":0,"d":"0.00 ₫"}},{"$f":"SUMIFS(Chi_phí_phân_theo_khoản_mục[Số tiền trên séc],Chi_phí_phân_theo_khoản_mục[Mã sổ cái],Tóm_tắt_chi_phí_hàng_tháng[[#This Row],[Mã sổ cái]],Chi_phí_phân_theo_khoản_mục[Ngày lập hóa đơn],\">=\"&J$3,Chi_phí_phân_theo_khoản_mục[Ngày lập hóa đơn],\"<=\"&J$4)+SUMIFS(Khác[Số tiền trên séc],Khác[Mã sổ cái],Tóm_tắt_chi_phí_hàng_tháng[[#This Row],[Mã sổ cái]],Khác[Ngày khởi tạo yêu cầu séc],\">=\"&DATEVALUE(\"1 \"&Tóm_tắt_chi_phí_hàng_tháng[[#Headers],[Tháng Bảy]]&\" \"&_NĂM),Khác[Ngày khởi tạo yêu cầu séc],\"<=\"&J$4)","v":{"v":0,"d":"0.00 ₫"}},{"$f":"SUMIFS(Chi_phí_phân_theo_khoản_mục[Số tiền trên séc],Chi_phí_phân_theo_khoản_mục[Mã sổ cái],Tóm_tắt_chi_phí_hàng_tháng[[#This Row],[Mã sổ cái]],Chi_phí_phân_theo_khoản_mục[Ngày lập hóa đơn],\">=\"&K$3,Chi_phí_phân_theo_khoản_mục[Ngày lập hóa đơn],\"<=\"&K$4)+SUMIFS(Khác[Số tiền trên séc],Khác[Mã sổ cái],Tóm_tắt_chi_phí_hàng_tháng[[#This Row],[Mã sổ cái]],Khác[Ngày khởi tạo yêu cầu séc],\">=\"&DATEVALUE(\"1 \"&Tóm_tắt_chi_phí_hàng_tháng[[#Headers],[Tháng Tám]]&\" \"&_NĂM),Khác[Ngày khởi tạo yêu cầu séc],\"<=\"&K$4)","v":{"v":0,"d":"0.00 ₫"}},{"$f":"SUMIFS(Chi_phí_phân_theo_khoản_mục[Số tiền trên séc],Chi_phí_phân_theo_khoản_mục[Mã sổ cái],Tóm_tắt_chi_phí_hàng_tháng[[#This Row],[Mã sổ cái]],Chi_phí_phân_theo_khoản_mục[Ngày lập hóa đơn],\">=\"&L$3,Chi_phí_phân_theo_khoản_mục[Ngày lập hóa đơn],\"<=\"&L$4)+SUMIFS(Khác[Số tiền trên séc],Khác[Mã sổ cái],Tóm_tắt_chi_phí_hàng_tháng[[#This Row],[Mã sổ cái]],Khác[Ngày khởi tạo yêu cầu séc],\">=\"&DATEVALUE(\"1 \"&Tóm_tắt_chi_phí_hàng_tháng[[#Headers],[Tháng Chín]]&\" \"&_NĂM),Khác[Ngày khởi tạo yêu cầu séc],\"<=\"&L$4)","v":{"v":0,"d":"0.00 ₫"}},{"$f":"SUMIFS(Chi_phí_phân_theo_khoản_mục[Số tiền trên séc],Chi_phí_phân_theo_khoản_mục[Mã sổ cái],Tóm_tắt_chi_phí_hàng_tháng[[#This Row],[Mã sổ cái]],Chi_phí_phân_theo_khoản_mục[Ngày lập hóa đơn],\">=\"&M$3,Chi_phí_phân_theo_khoản_mục[Ngày lập hóa đơn],\"<=\"&M$4)+SUMIFS(Khác[Số tiền trên séc],Khác[Mã sổ cái],Tóm_tắt_chi_phí_hàng_tháng[[#This Row],[Mã sổ cái]],Khác[Ngày khởi tạo yêu cầu séc],\">=\"&DATEVALUE(\"1 \"&Tóm_tắt_chi_phí_hàng_tháng[[#Headers],[Tháng Mười]]&\" \"&_NĂM),Khác[Ngày khởi tạo yêu cầu séc],\"<=\"&M$4)","v":{"v":0,"d":"0.00 ₫"}},{"$f":"SUMIFS(Chi_phí_phân_theo_khoản_mục[Số tiền trên séc],Chi_phí_phân_theo_khoản_mục[Mã sổ cái],Tóm_tắt_chi_phí_hàng_tháng[[#This Row],[Mã sổ cái]],Chi_phí_phân_theo_khoản_mục[Ngày lập hóa đơn],\">=\"&N$3,Chi_phí_phân_theo_khoản_mục[Ngày lập hóa đơn],\"<=\"&N$4)+SUMIFS(Khác[Số tiền trên séc],Khác[Mã sổ cái],Tóm_tắt_chi_phí_hàng_tháng[[#This Row],[Mã sổ cái]],Khác[Ngày khởi tạo yêu cầu séc],\">=\"&DATEVALUE(\"1 \"&Tóm_tắt_chi_phí_hàng_tháng[[#Headers],[Tháng Mười Một]]&\" \"&_NĂM),Khác[Ngày khởi tạo yêu cầu séc],\"<=\"&N$4)","v":{"v":0,"d":"0.00 ₫"}},{"$f":"SUMIFS(Chi_phí_phân_theo_khoản_mục[Số tiền trên séc],Chi_phí_phân_theo_khoản_mục[Mã sổ cái],Tóm_tắt_chi_phí_hàng_tháng[[#This Row],[Mã sổ cái]],Chi_phí_phân_theo_khoản_mục[Ngày lập hóa đơn],\">=\"&O$3,Chi_phí_phân_theo_khoản_mục[Ngày lập hóa đơn],\"<=\"&O$4)+SUMIFS(Khác[Số tiền trên séc],Khác[Mã sổ cái],Tóm_tắt_chi_phí_hàng_tháng[[#This Row],[Mã sổ cái]],Khác[Ngày khởi tạo yêu cầu séc],\">=\"&DATEVALUE(\"1 \"&Tóm_tắt_chi_phí_hàng_tháng[[#Headers],[Tháng Mười Hai]]&\" \"&_NĂM),Khác[Ngày khởi tạo yêu cầu séc],\"<=\"&O$4)","v":{"v":0,"d":"0.00 ₫"}},{"$f":"SUM(Tóm_tắt_chi_phí_hàng_tháng[[#This Row],[Tháng Giêng]:[Tháng Mười Hai]])","v":{"v":0,"d":"0.00 ₫"}}]
[null,9000,"Chi phí xây dựng",{"$f":"SUMIFS(Chi_phí_phân_theo_khoản_mục[Số tiền trên séc],Chi_phí_phân_theo_khoản_mục[Mã sổ cái],Tóm_tắt_chi_phí_hàng_tháng[[#This Row],[Mã sổ cái]],Chi_phí_phân_theo_khoản_mục[Ngày lập hóa đơn],\">=\"&D$3,Chi_phí_phân_theo_khoản_mục[Ngày lập hóa đơn],\"<=\"&D$4)+SUMIFS(Khác[Số tiền trên séc],Khác[Mã sổ cái],Tóm_tắt_chi_phí_hàng_tháng[[#This Row],[Mã sổ cái]],Khác[Ngày khởi tạo yêu cầu séc],\">=\"&DATEVALUE(\"1 \"&Tóm_tắt_chi_phí_hàng_tháng[[#Headers],[Tháng Giêng]]&\" \"&_NĂM),Khác[Ngày khởi tạo yêu cầu séc],\"<=\"&D$4)","v":{"v":0,"d":"0.00 ₫"}},{"$f":"SUMIFS(Chi_phí_phân_theo_khoản_mục[Số tiền trên séc],Chi_phí_phân_theo_khoản_mục[Mã sổ cái],Tóm_tắt_chi_phí_hàng_tháng[[#This Row],[Mã sổ cái]],Chi_phí_phân_theo_khoản_mục[Ngày lập hóa đơn],\">=\"&E$3,Chi_phí_phân_theo_khoản_mục[Ngày lập hóa đơn],\"<=\"&E$4)+SUMIFS(Khác[Số tiền trên séc],Khác[Mã sổ cái],Tóm_tắt_chi_phí_hàng_tháng[[#This Row],[Mã sổ cái]],Khác[Ngày khởi tạo yêu cầu séc],\">=\"&DATEVALUE(\"1 \"&Tóm_tắt_chi_phí_hàng_tháng[[#Headers],[Tháng Hai]]&\" \"&_NĂM),Khác[Ngày khởi tạo yêu cầu séc],\"<=\"&E$4)","v":{"v":0,"d":"0.00 ₫"}},{"$f":"SUMIFS(Chi_phí_phân_theo_khoản_mục[Số tiền trên séc],Chi_phí_phân_theo_khoản_mục[Mã sổ cái],Tóm_tắt_chi_phí_hàng_tháng[[#This Row],[Mã sổ cái]],Chi_phí_phân_theo_khoản_mục[Ngày lập hóa đơn],\">=\"&F$3,Chi_phí_phân_theo_khoản_mục[Ngày lập hóa đơn],\"<=\"&F$4)+SUMIFS(Khác[Số tiền trên séc],Khác[Mã sổ cái],Tóm_tắt_chi_phí_hàng_tháng[[#This Row],[Mã sổ cái]],Khác[Ngày khởi tạo yêu cầu séc],\">=\"&DATEVALUE(\"1 \"&Tóm_tắt_chi_phí_hàng_tháng[[#Headers],[Tháng Ba]]&\" \"&_NĂM),Khác[Ngày khởi tạo yêu cầu séc],\"<=\"&F$4)","v":{"v":0,"d":"0.00 ₫"}},{"$f":"SUMIFS(Chi_phí_phân_theo_khoản_mục[Số tiền trên séc],Chi_phí_phân_theo_khoản_mục[Mã sổ cái],Tóm_tắt_chi_phí_hàng_tháng[[#This Row],[Mã sổ cái]],Chi_phí_phân_theo_khoản_mục[Ngày lập hóa đơn],\">=\"&G$3,Chi_phí_phân_theo_khoản_mục[Ngày lập hóa đơn],\"<=\"&G$4)+SUMIFS(Khác[Số tiền trên séc],Khác[Mã sổ cái],Tóm_tắt_chi_phí_hàng_tháng[[#This Row],[Mã sổ cái]],Khác[Ngày khởi tạo yêu cầu séc],\">=\"&DATEVALUE(\"1 \"&Tóm_tắt_chi_phí_hàng_tháng[[#Headers],[Tháng Tư]]&\" \"&_NĂM),Khác[Ngày khởi tạo yêu cầu séc],\"<=\"&G$4)","v":{"v":0,"d":"0.00 ₫"}},{"$f":"SUMIFS(Chi_phí_phân_theo_khoản_mục[Số tiền trên séc],Chi_phí_phân_theo_khoản_mục[Mã sổ cái],Tóm_tắt_chi_phí_hàng_tháng[[#This Row],[Mã sổ cái]],Chi_phí_phân_theo_khoản_mục[Ngày lập hóa đơn],\">=\"&H$3,Chi_phí_phân_theo_khoản_mục[Ngày lập hóa đơn],\"<=\"&H$4)+SUMIFS(Khác[Số tiền trên séc],Khác[Mã sổ cái],Tóm_tắt_chi_phí_hàng_tháng[[#This Row],[Mã sổ cái]],Khác[Ngày khởi tạo yêu cầu séc],\">=\"&DATEVALUE(\"1 \"&Tóm_tắt_chi_phí_hàng_tháng[[#Headers],[Tháng Năm]]&\" \"&_NĂM),Khác[Ngày khởi tạo yêu cầu séc],\"<=\"&H$4)","v":{"v":0,"d":"0.00 ₫"}},{"$f":"SUMIFS(Chi_phí_phân_theo_khoản_mục[Số tiền trên séc],Chi_phí_phân_theo_khoản_mục[Mã sổ cái],Tóm_tắt_chi_phí_hàng_tháng[[#This Row],[Mã sổ cái]],Chi_phí_phân_theo_khoản_mục[Ngày lập hóa đơn],\">=\"&I$3,Chi_phí_phân_theo_khoản_mục[Ngày lập hóa đơn],\"<=\"&I$4)+SUMIFS(Khác[Số tiền trên séc],Khác[Mã sổ cái],Tóm_tắt_chi_phí_hàng_tháng[[#This Row],[Mã sổ cái]],Khác[Ngày khởi tạo yêu cầu séc],\">=\"&DATEVALUE(\"1 \"&Tóm_tắt_chi_phí_hàng_tháng[[#Headers],[Tháng Sáu]]&\" \"&_NĂM),Khác[Ngày khởi tạo yêu cầu séc],\"<=\"&I$4)","v":{"v":0,"d":"0.00 ₫"}},{"$f":"SUMIFS(Chi_phí_phân_theo_khoản_mục[Số tiền trên séc],Chi_phí_phân_theo_khoản_mục[Mã sổ cái],Tóm_tắt_chi_phí_hàng_tháng[[#This Row],[Mã sổ cái]],Chi_phí_phân_theo_khoản_mục[Ngày lập hóa đơn],\">=\"&J$3,Chi_phí_phân_theo_khoản_mục[Ngày lập hóa đơn],\"<=\"&J$4)+SUMIFS(Khác[Số tiền trên séc],Khác[Mã sổ cái],Tóm_tắt_chi_phí_hàng_tháng[[#This Row],[Mã sổ cái]],Khác[Ngày khởi tạo yêu cầu séc],\">=\"&DATEVALUE(\"1 \"&Tóm_tắt_chi_phí_hàng_tháng[[#Headers],[Tháng Bảy]]&\" \"&_NĂM),Khác[Ngày khởi tạo yêu cầu séc],\"<=\"&J$4)","v":{"v":0,"d":"0.00 ₫"}},{"$f":"SUMIFS(Chi_phí_phân_theo_khoản_mục[Số tiền trên séc],Chi_phí_phân_theo_khoản_mục[Mã sổ cái],Tóm_tắt_chi_phí_hàng_tháng[[#This Row],[Mã sổ cái]],Chi_phí_phân_theo_khoản_mục[Ngày lập hóa đơn],\">=\"&K$3,Chi_phí_phân_theo_khoản_mục[Ngày lập hóa đơn],\"<=\"&K$4)+SUMIFS(Khác[Số tiền trên séc],Khác[Mã sổ cái],Tóm_tắt_chi_phí_hàng_tháng[[#This Row],[Mã sổ cái]],Khác[Ngày khởi tạo yêu cầu séc],\">=\"&DATEVALUE(\"1 \"&Tóm_tắt_chi_phí_hàng_tháng[[#Headers],[Tháng Tám]]&\" \"&_NĂM),Khác[Ngày khởi tạo yêu cầu séc],\"<=\"&K$4)","v":{"v":0,"d":"0.00 ₫"}},{"$f":"SUMIFS(Chi_phí_phân_theo_khoản_mục[Số tiền trên séc],Chi_phí_phân_theo_khoản_mục[Mã sổ cái],Tóm_tắt_chi_phí_hàng_tháng[[#This Row],[Mã sổ cái]],Chi_phí_phân_theo_khoản_mục[Ngày lập hóa đơn],\">=\"&L$3,Chi_phí_phân_theo_khoản_mục[Ngày lập hóa đơn],\"<=\"&L$4)+SUMIFS(Khác[Số tiền trên séc],Khác[Mã sổ cái],Tóm_tắt_chi_phí_hàng_tháng[[#This Row],[Mã sổ cái]],Khác[Ngày khởi tạo yêu cầu séc],\">=\"&DATEVALUE(\"1 \"&Tóm_tắt_chi_phí_hàng_tháng[[#Headers],[Tháng Chín]]&\" \"&_NĂM),Khác[Ngày khởi tạo yêu cầu séc],\"<=\"&L$4)","v":{"v":0,"d":"0.00 ₫"}},{"$f":"SUMIFS(Chi_phí_phân_theo_khoản_mục[Số tiền trên séc],Chi_phí_phân_theo_khoản_mục[Mã sổ cái],Tóm_tắt_chi_phí_hàng_tháng[[#This Row],[Mã sổ cái]],Chi_phí_phân_theo_khoản_mục[Ngày lập hóa đơn],\">=\"&M$3,Chi_phí_phân_theo_khoản_mục[Ngày lập hóa đơn],\"<=\"&M$4)+SUMIFS(Khác[Số tiền trên séc],Khác[Mã sổ cái],Tóm_tắt_chi_phí_hàng_tháng[[#This Row],[Mã sổ cái]],Khác[Ngày khởi tạo yêu cầu séc],\">=\"&DATEVALUE(\"1 \"&Tóm_tắt_chi_phí_hàng_tháng[[#Headers],[Tháng Mười]]&\" \"&_NĂM),Khác[Ngày khởi tạo yêu cầu séc],\"<=\"&M$4)","v":{"v":0,"d":"0.00 ₫"}},{"$f":"SUMIFS(Chi_phí_phân_theo_khoản_mục[Số tiền trên séc],Chi_phí_phân_theo_khoản_mục[Mã sổ cái],Tóm_tắt_chi_phí_hàng_tháng[[#This Row],[Mã sổ cái]],Chi_phí_phân_theo_khoản_mục[Ngày lập hóa đơn],\">=\"&N$3,Chi_phí_phân_theo_khoản_mục[Ngày lập hóa đơn],\"<=\"&N$4)+SUMIFS(Khác[Số tiền trên séc],Khác[Mã sổ cái],Tóm_tắt_chi_phí_hàng_tháng[[#This Row],[Mã sổ cái]],Khác[Ngày khởi tạo yêu cầu séc],\">=\"&DATEVALUE(\"1 \"&Tóm_tắt_chi_phí_hàng_tháng[[#Headers],[Tháng Mười Một]]&\" \"&_NĂM),Khác[Ngày khởi tạo yêu cầu séc],\"<=\"&N$4)","v":{"v":0,"d":"0.00 ₫"}},{"$f":"SUMIFS(Chi_phí_phân_theo_khoản_mục[Số tiền trên séc],Chi_phí_phân_theo_khoản_mục[Mã sổ cái],Tóm_tắt_chi_phí_hàng_tháng[[#This Row],[Mã sổ cái]],Chi_phí_phân_theo_khoản_mục[Ngày lập hóa đơn],\">=\"&O$3,Chi_phí_phân_theo_khoản_mục[Ngày lập hóa đơn],\"<=\"&O$4)+SUMIFS(Khác[Số tiền trên séc],Khác[Mã sổ cái],Tóm_tắt_chi_phí_hàng_tháng[[#This Row],[Mã sổ cái]],Khác[Ngày khởi tạo yêu cầu séc],\">=\"&DATEVALUE(\"1 \"&Tóm_tắt_chi_phí_hàng_tháng[[#Headers],[Tháng Mười Hai]]&\" \"&_NĂM),Khác[Ngày khởi tạo yêu cầu séc],\"<=\"&O$4)","v":{"v":0,"d":"0.00 ₫"}},{"$f":"SUM(Tóm_tắt_chi_phí_hàng_tháng[[#This Row],[Tháng Giêng]:[Tháng Mười Hai]])","v":{"v":0,"d":"0.00 ₫"}}]
[null,10000,"Tiếp thị",{"$f":"SUMIFS(Chi_phí_phân_theo_khoản_mục[Số tiền trên séc],Chi_phí_phân_theo_khoản_mục[Mã sổ cái],Tóm_tắt_chi_phí_hàng_tháng[[#This Row],[Mã sổ cái]],Chi_phí_phân_theo_khoản_mục[Ngày lập hóa đơn],\">=\"&D$3,Chi_phí_phân_theo_khoản_mục[Ngày lập hóa đơn],\"<=\"&D$4)+SUMIFS(Khác[Số tiền trên séc],Khác[Mã sổ cái],Tóm_tắt_chi_phí_hàng_tháng[[#This Row],[Mã sổ cái]],Khác[Ngày khởi tạo yêu cầu séc],\">=\"&DATEVALUE(\"1 \"&Tóm_tắt_chi_phí_hàng_tháng[[#Headers],[Tháng Giêng]]&\" \"&_NĂM),Khác[Ngày khởi tạo yêu cầu séc],\"<=\"&D$4)","v":{"v":0,"d":"0.00 ₫"}},{"$f":"SUMIFS(Chi_phí_phân_theo_khoản_mục[Số tiền trên séc],Chi_phí_phân_theo_khoản_mục[Mã sổ cái],Tóm_tắt_chi_phí_hàng_tháng[[#This Row],[Mã sổ cái]],Chi_phí_phân_theo_khoản_mục[Ngày lập hóa đơn],\">=\"&E$3,Chi_phí_phân_theo_khoản_mục[Ngày lập hóa đơn],\"<=\"&E$4)+SUMIFS(Khác[Số tiền trên séc],Khác[Mã sổ cái],Tóm_tắt_chi_phí_hàng_tháng[[#This Row],[Mã sổ cái]],Khác[Ngày khởi tạo yêu cầu séc],\">=\"&DATEVALUE(\"1 \"&Tóm_tắt_chi_phí_hàng_tháng[[#Headers],[Tháng Hai]]&\" \"&_NĂM),Khác[Ngày khởi tạo yêu cầu séc],\"<=\"&E$4)","v":{"v":0,"d":"0.00 ₫"}},{"$f":"SUMIFS(Chi_phí_phân_theo_khoản_mục[Số tiền trên séc],Chi_phí_phân_theo_khoản_mục[Mã sổ cái],Tóm_tắt_chi_phí_hàng_tháng[[#This Row],[Mã sổ cái]],Chi_phí_phân_theo_khoản_mục[Ngày lập hóa đơn],\">=\"&F$3,Chi_phí_phân_theo_khoản_mục[Ngày lập hóa đơn],\"<=\"&F$4)+SUMIFS(Khác[Số tiền trên séc],Khác[Mã sổ cái],Tóm_tắt_chi_phí_hàng_tháng[[#This Row],[Mã sổ cái]],Khác[Ngày khởi tạo yêu cầu séc],\">=\"&DATEVALUE(\"1 \"&Tóm_tắt_chi_phí_hàng_tháng[[#Headers],[Tháng Ba]]&\" \"&_NĂM),Khác[Ngày khởi tạo yêu cầu séc],\"<=\"&F$4)","v":{"v":0,"d":"0.00 ₫"}},{"$f":"SUMIFS(Chi_phí_phân_theo_khoản_mục[Số tiền trên séc],Chi_phí_phân_theo_khoản_mục[Mã sổ cái],Tóm_tắt_chi_phí_hàng_tháng[[#This Row],[Mã sổ cái]],Chi_phí_phân_theo_khoản_mục[Ngày lập hóa đơn],\">=\"&G$3,Chi_phí_phân_theo_khoản_mục[Ngày lập hóa đơn],\"<=\"&G$4)+SUMIFS(Khác[Số tiền trên séc],Khác[Mã sổ cái],Tóm_tắt_chi_phí_hàng_tháng[[#This Row],[Mã sổ cái]],Khác[Ngày khởi tạo yêu cầu séc],\">=\"&DATEVALUE(\"1 \"&Tóm_tắt_chi_phí_hàng_tháng[[#Headers],[Tháng Tư]]&\" \"&_NĂM),Khác[Ngày khởi tạo yêu cầu séc],\"<=\"&G$4)","v":{"v":0,"d":"0.00 ₫"}},{"$f":"SUMIFS(Chi_phí_phân_theo_khoản_mục[Số tiền trên séc],Chi_phí_phân_theo_khoản_mục[Mã sổ cái],Tóm_tắt_chi_phí_hàng_tháng[[#This Row],[Mã sổ cái]],Chi_phí_phân_theo_khoản_mục[Ngày lập hóa đơn],\">=\"&H$3,Chi_phí_phân_theo_khoản_mục[Ngày lập hóa đơn],\"<=\"&H$4)+SUMIFS(Khác[Số tiền trên séc],Khác[Mã sổ cái],Tóm_tắt_chi_phí_hàng_tháng[[#This Row],[Mã sổ cái]],Khác[Ngày khởi tạo yêu cầu séc],\">=\"&DATEVALUE(\"1 \"&Tóm_tắt_chi_phí_hàng_tháng[[#Headers],[Tháng Năm]]&\" \"&_NĂM),Khác[Ngày khởi tạo yêu cầu séc],\"<=\"&H$4)","v":{"v":0,"d":"0.00 ₫"}},{"$f":"SUMIFS(Chi_phí_phân_theo_khoản_mục[Số tiền trên séc],Chi_phí_phân_theo_khoản_mục[Mã sổ cái],Tóm_tắt_chi_phí_hàng_tháng[[#This Row],[Mã sổ cái]],Chi_phí_phân_theo_khoản_mục[Ngày lập hóa đơn],\">=\"&I$3,Chi_phí_phân_theo_khoản_mục[Ngày lập hóa đơn],\"<=\"&I$4)+SUMIFS(Khác[Số tiền trên séc],Khác[Mã sổ cái],Tóm_tắt_chi_phí_hàng_tháng[[#This Row],[Mã sổ cái]],Khác[Ngày khởi tạo yêu cầu séc],\">=\"&DATEVALUE(\"1 \"&Tóm_tắt_chi_phí_hàng_tháng[[#Headers],[Tháng Sáu]]&\" \"&_NĂM),Khác[Ngày khởi tạo yêu cầu séc],\"<=\"&I$4)","v":{"v":0,"d":"0.00 ₫"}},{"$f":"SUMIFS(Chi_phí_phân_theo_khoản_mục[Số tiền trên séc],Chi_phí_phân_theo_khoản_mục[Mã sổ cái],Tóm_tắt_chi_phí_hàng_tháng[[#This Row],[Mã sổ cái]],Chi_phí_phân_theo_khoản_mục[Ngày lập hóa đơn],\">=\"&J$3,Chi_phí_phân_theo_khoản_mục[Ngày lập hóa đơn],\"<=\"&J$4)+SUMIFS(Khác[Số tiền trên séc],Khác[Mã sổ cái],Tóm_tắt_chi_phí_hàng_tháng[[#This Row],[Mã sổ cái]],Khác[Ngày khởi tạo yêu cầu séc],\">=\"&DATEVALUE(\"1 \"&Tóm_tắt_chi_phí_hàng_tháng[[#Headers],[Tháng Bảy]]&\" \"&_NĂM),Khác[Ngày khởi tạo yêu cầu séc],\"<=\"&J$4)","v":{"v":0,"d":"0.00 ₫"}},{"$f":"SUMIFS(Chi_phí_phân_theo_khoản_mục[Số tiền trên séc],Chi_phí_phân_theo_khoản_mục[Mã sổ cái],Tóm_tắt_chi_phí_hàng_tháng[[#This Row],[Mã sổ cái]],Chi_phí_phân_theo_khoản_mục[Ngày lập hóa đơn],\">=\"&K$3,Chi_phí_phân_theo_khoản_mục[Ngày lập hóa đơn],\"<=\"&K$4)+SUMIFS(Khác[Số tiền trên séc],Khác[Mã sổ cái],Tóm_tắt_chi_phí_hàng_tháng[[#This Row],[Mã sổ cái]],Khác[Ngày khởi tạo yêu cầu séc],\">=\"&DATEVALUE(\"1 \"&Tóm_tắt_chi_phí_hàng_tháng[[#Headers],[Tháng Tám]]&\" \"&_NĂM),Khác[Ngày khởi tạo yêu cầu séc],\"<=\"&K$4)","v":{"v":0,"d":"0.00 ₫"}},{"$f":"SUMIFS(Chi_phí_phân_theo_khoản_mục[Số tiền trên séc],Chi_phí_phân_theo_khoản_mục[Mã sổ cái],Tóm_tắt_chi_phí_hàng_tháng[[#This Row],[Mã sổ cái]],Chi_phí_phân_theo_khoản_mục[Ngày lập hóa đơn],\">=\"&L$3,Chi_phí_phân_theo_khoản_mục[Ngày lập hóa đơn],\"<=\"&L$4)+SUMIFS(Khác[Số tiền trên séc],Khác[Mã sổ cái],Tóm_tắt_chi_phí_hàng_tháng[[#This Row],[Mã sổ cái]],Khác[Ngày khởi tạo yêu cầu séc],\">=\"&DATEVALUE(\"1 \"&Tóm_tắt_chi_phí_hàng_tháng[[#Headers],[Tháng Chín]]&\" \"&_NĂM),Khác[Ngày khởi tạo yêu cầu séc],\"<=\"&L$4)","v":{"v":0,"d":"0.00 ₫"}},{"$f":"SUMIFS(Chi_phí_phân_theo_khoản_mục[Số tiền trên séc],Chi_phí_phân_theo_khoản_mục[Mã sổ cái],Tóm_tắt_chi_phí_hàng_tháng[[#This Row],[Mã sổ cái]],Chi_phí_phân_theo_khoản_mục[Ngày lập hóa đơn],\">=\"&M$3,Chi_phí_phân_theo_khoản_mục[Ngày lập hóa đơn],\"<=\"&M$4)+SUMIFS(Khác[Số tiền trên séc],Khác[Mã sổ cái],Tóm_tắt_chi_phí_hàng_tháng[[#This Row],[Mã sổ cái]],Khác[Ngày khởi tạo yêu cầu séc],\">=\"&DATEVALUE(\"1 \"&Tóm_tắt_chi_phí_hàng_tháng[[#Headers],[Tháng Mười]]&\" \"&_NĂM),Khác[Ngày khởi tạo yêu cầu séc],\"<=\"&M$4)","v":{"v":0,"d":"0.00 ₫"}},{"$f":"SUMIFS(Chi_phí_phân_theo_khoản_mục[Số tiền trên séc],Chi_phí_phân_theo_khoản_mục[Mã sổ cái],Tóm_tắt_chi_phí_hàng_tháng[[#This Row],[Mã sổ cái]],Chi_phí_phân_theo_khoản_mục[Ngày lập hóa đơn],\">=\"&N$3,Chi_phí_phân_theo_khoản_mục[Ngày lập hóa đơn],\"<=\"&N$4)+SUMIFS(Khác[Số tiền trên séc],Khác[Mã sổ cái],Tóm_tắt_chi_phí_hàng_tháng[[#This Row],[Mã sổ cái]],Khác[Ngày khởi tạo yêu cầu séc],\">=\"&DATEVALUE(\"1 \"&Tóm_tắt_chi_phí_hàng_tháng[[#Headers],[Tháng Mười Một]]&\" \"&_NĂM),Khác[Ngày khởi tạo yêu cầu séc],\"<=\"&N$4)","v":{"v":0,"d":"0.00 ₫"}},{"$f":"SUMIFS(Chi_phí_phân_theo_khoản_mục[Số tiền trên séc],Chi_phí_phân_theo_khoản_mục[Mã sổ cái],Tóm_tắt_chi_phí_hàng_tháng[[#This Row],[Mã sổ cái]],Chi_phí_phân_theo_khoản_mục[Ngày lập hóa đơn],\">=\"&O$3,Chi_phí_phân_theo_khoản_mục[Ngày lập hóa đơn],\"<=\"&O$4)+SUMIFS(Khác[Số tiền trên séc],Khác[Mã sổ cái],Tóm_tắt_chi_phí_hàng_tháng[[#This Row],[Mã sổ cái]],Khác[Ngày khởi tạo yêu cầu séc],\">=\"&DATEVALUE(\"1 \"&Tóm_tắt_chi_phí_hàng_tháng[[#Headers],[Tháng Mười Hai]]&\" \"&_NĂM),Khác[Ngày khởi tạo yêu cầu séc],\"<=\"&O$4)","v":{"v":0,"d":"0.00 ₫"}},{"$f":"SUM(Tóm_tắt_chi_phí_hàng_tháng[[#This Row],[Tháng Giêng]:[Tháng Mười Hai]])","v":{"v":0,"d":"0.00 ₫"}}]
[null,11000,"Khoản từ thiện",{"$f":"SUMIFS(Chi_phí_phân_theo_khoản_mục[Số tiền trên séc],Chi_phí_phân_theo_khoản_mục[Mã sổ cái],Tóm_tắt_chi_phí_hàng_tháng[[#This Row],[Mã sổ cái]],Chi_phí_phân_theo_khoản_mục[Ngày lập hóa đơn],\">=\"&D$3,Chi_phí_phân_theo_khoản_mục[Ngày lập hóa đơn],\"<=\"&D$4)+SUMIFS(Khác[Số tiền trên séc],Khác[Mã sổ cái],Tóm_tắt_chi_phí_hàng_tháng[[#This Row],[Mã sổ cái]],Khác[Ngày khởi tạo yêu cầu séc],\">=\"&DATEVALUE(\"1 \"&Tóm_tắt_chi_phí_hàng_tháng[[#Headers],[Tháng Giêng]]&\" \"&_NĂM),Khác[Ngày khởi tạo yêu cầu séc],\"<=\"&D$4)","v":{"v":0,"d":"0.00 ₫"}},{"$f":"SUMIFS(Chi_phí_phân_theo_khoản_mục[Số tiền trên séc],Chi_phí_phân_theo_khoản_mục[Mã sổ cái],Tóm_tắt_chi_phí_hàng_tháng[[#This Row],[Mã sổ cái]],Chi_phí_phân_theo_khoản_mục[Ngày lập hóa đơn],\">=\"&E$3,Chi_phí_phân_theo_khoản_mục[Ngày lập hóa đơn],\"<=\"&E$4)+SUMIFS(Khác[Số tiền trên séc],Khác[Mã sổ cái],Tóm_tắt_chi_phí_hàng_tháng[[#This Row],[Mã sổ cái]],Khác[Ngày khởi tạo yêu cầu séc],\">=\"&DATEVALUE(\"1 \"&Tóm_tắt_chi_phí_hàng_tháng[[#Headers],[Tháng Hai]]&\" \"&_NĂM),Khác[Ngày khởi tạo yêu cầu séc],\"<=\"&E$4)","v":{"v":0,"d":"0.00 ₫"}},{"$f":"SUMIFS(Chi_phí_phân_theo_khoản_mục[Số tiền trên séc],Chi_phí_phân_theo_khoản_mục[Mã sổ cái],Tóm_tắt_chi_phí_hàng_tháng[[#This Row],[Mã sổ cái]],Chi_phí_phân_theo_khoản_mục[Ngày lập hóa đơn],\">=\"&F$3,Chi_phí_phân_theo_khoản_mục[Ngày lập hóa đơn],\"<=\"&F$4)+SUMIFS(Khác[Số tiền trên séc],Khác[Mã sổ cái],Tóm_tắt_chi_phí_hàng_tháng[[#This Row],[Mã sổ cái]],Khác[Ngày khởi tạo yêu cầu séc],\">=\"&DATEVALUE(\"1 \"&Tóm_tắt_chi_phí_hàng_tháng[[#Headers],[Tháng Ba]]&\" \"&_NĂM),Khác[Ngày khởi tạo yêu cầu séc],\"<=\"&F$4)","v":{"v":0,"d":"0.00 ₫"}},{"$f":"SUMIFS(Chi_phí_phân_theo_khoản_mục[Số tiền trên séc],Chi_phí_phân_theo_khoản_mục[Mã sổ cái],Tóm_tắt_chi_phí_hàng_tháng[[#This Row],[Mã sổ cái]],Chi_phí_phân_theo_khoản_mục[Ngày lập hóa đơn],\">=\"&G$3,Chi_phí_phân_theo_khoản_mục[Ngày lập hóa đơn],\"<=\"&G$4)+SUMIFS(Khác[Số tiền trên séc],Khác[Mã sổ cái],Tóm_tắt_chi_phí_hàng_tháng[[#This Row],[Mã sổ cái]],Khác[Ngày khởi tạo yêu cầu séc],\">=\"&DATEVALUE(\"1 \"&Tóm_tắt_chi_phí_hàng_tháng[[#Headers],[Tháng Tư]]&\" \"&_NĂM),Khác[Ngày khởi tạo yêu cầu séc],\"<=\"&G$4)","v":{"v":0,"d":"0.00 ₫"}},{"$f":"SUMIFS(Chi_phí_phân_theo_khoản_mục[Số tiền trên séc],Chi_phí_phân_theo_khoản_mục[Mã sổ cái],Tóm_tắt_chi_phí_hàng_tháng[[#This Row],[Mã sổ cái]],Chi_phí_phân_theo_khoản_mục[Ngày lập hóa đơn],\">=\"&H$3,Chi_phí_phân_theo_khoản_mục[Ngày lập hóa đơn],\"<=\"&H$4)+SUMIFS(Khác[Số tiền trên séc],Khác[Mã sổ cái],Tóm_tắt_chi_phí_hàng_tháng[[#This Row],[Mã sổ cái]],Khác[Ngày khởi tạo yêu cầu séc],\">=\"&DATEVALUE(\"1 \"&Tóm_tắt_chi_phí_hàng_tháng[[#Headers],[Tháng Năm]]&\" \"&_NĂM),Khác[Ngày khởi tạo yêu cầu séc],\"<=\"&H$4)","v":{"v":0,"d":"0.00 ₫"}},{"$f":"SUMIFS(Chi_phí_phân_theo_khoản_mục[Số tiền trên séc],Chi_phí_phân_theo_khoản_mục[Mã sổ cái],Tóm_tắt_chi_phí_hàng_tháng[[#This Row],[Mã sổ cái]],Chi_phí_phân_theo_khoản_mục[Ngày lập hóa đơn],\">=\"&I$3,Chi_phí_phân_theo_khoản_mục[Ngày lập hóa đơn],\"<=\"&I$4)+SUMIFS(Khác[Số tiền trên séc],Khác[Mã sổ cái],Tóm_tắt_chi_phí_hàng_tháng[[#This Row],[Mã sổ cái]],Khác[Ngày khởi tạo yêu cầu séc],\">=\"&DATEVALUE(\"1 \"&Tóm_tắt_chi_phí_hàng_tháng[[#Headers],[Tháng Sáu]]&\" \"&_NĂM),Khác[Ngày khởi tạo yêu cầu séc],\"<=\"&I$4)","v":{"v":0,"d":"0.00 ₫"}},{"$f":"SUMIFS(Chi_phí_phân_theo_khoản_mục[Số tiền trên séc],Chi_phí_phân_theo_khoản_mục[Mã sổ cái],Tóm_tắt_chi_phí_hàng_tháng[[#This Row],[Mã sổ cái]],Chi_phí_phân_theo_khoản_mục[Ngày lập hóa đơn],\">=\"&J$3,Chi_phí_phân_theo_khoản_mục[Ngày lập hóa đơn],\"<=\"&J$4)+SUMIFS(Khác[Số tiền trên séc],Khác[Mã sổ cái],Tóm_tắt_chi_phí_hàng_tháng[[#This Row],[Mã sổ cái]],Khác[Ngày khởi tạo yêu cầu séc],\">=\"&DATEVALUE(\"1 \"&Tóm_tắt_chi_phí_hàng_tháng[[#Headers],[Tháng Bảy]]&\" \"&_NĂM),Khác[Ngày khởi tạo yêu cầu séc],\"<=\"&J$4)","v":{"v":0,"d":"0.00 ₫"}},{"$f":"SUMIFS(Chi_phí_phân_theo_khoản_mục[Số tiền trên séc],Chi_phí_phân_theo_khoản_mục[Mã sổ cái],Tóm_tắt_chi_phí_hàng_tháng[[#This Row],[Mã sổ cái]],Chi_phí_phân_theo_khoản_mục[Ngày lập hóa đơn],\">=\"&K$3,Chi_phí_phân_theo_khoản_mục[Ngày lập hóa đơn],\"<=\"&K$4)+SUMIFS(Khác[Số tiền trên séc],Khác[Mã sổ cái],Tóm_tắt_chi_phí_hàng_tháng[[#This Row],[Mã sổ cái]],Khác[Ngày khởi tạo yêu cầu séc],\">=\"&DATEVALUE(\"1 \"&Tóm_tắt_chi_phí_hàng_tháng[[#Headers],[Tháng Tám]]&\" \"&_NĂM),Khác[Ngày khởi tạo yêu cầu séc],\"<=\"&K$4)","v":{"v":0,"d":"0.00 ₫"}},{"$f":"SUMIFS(Chi_phí_phân_theo_khoản_mục[Số tiền trên séc],Chi_phí_phân_theo_khoản_mục[Mã sổ cái],Tóm_tắt_chi_phí_hàng_tháng[[#This Row],[Mã sổ cái]],Chi_phí_phân_theo_khoản_mục[Ngày lập hóa đơn],\">=\"&L$3,Chi_phí_phân_theo_khoản_mục[Ngày lập hóa đơn],\"<=\"&L$4)+SUMIFS(Khác[Số tiền trên séc],Khác[Mã sổ cái],Tóm_tắt_chi_phí_hàng_tháng[[#This Row],[Mã sổ cái]],Khác[Ngày khởi tạo yêu cầu séc],\">=\"&DATEVALUE(\"1 \"&Tóm_tắt_chi_phí_hàng_tháng[[#Headers],[Tháng Chín]]&\" \"&_NĂM),Khác[Ngày khởi tạo yêu cầu séc],\"<=\"&L$4)","v":{"v":0,"d":"0.00 ₫"}},{"$f":"SUMIFS(Chi_phí_phân_theo_khoản_mục[Số tiền trên séc],Chi_phí_phân_theo_khoản_mục[Mã sổ cái],Tóm_tắt_chi_phí_hàng_tháng[[#This Row],[Mã sổ cái]],Chi_phí_phân_theo_khoản_mục[Ngày lập hóa đơn],\">=\"&M$3,Chi_phí_phân_theo_khoản_mục[Ngày lập hóa đơn],\"<=\"&M$4)+SUMIFS(Khác[Số tiền trên séc],Khác[Mã sổ cái],Tóm_tắt_chi_phí_hàng_tháng[[#This Row],[Mã sổ cái]],Khác[Ngày khởi tạo yêu cầu séc],\">=\"&DATEVALUE(\"1 \"&Tóm_tắt_chi_phí_hàng_tháng[[#Headers],[Tháng Mười]]&\" \"&_NĂM),Khác[Ngày khởi tạo yêu cầu séc],\"<=\"&M$4)","v":{"v":0,"d":"0.00 ₫"}},{"$f":"SUMIFS(Chi_phí_phân_theo_khoản_mục[Số tiền trên séc],Chi_phí_phân_theo_khoản_mục[Mã sổ cái],Tóm_tắt_chi_phí_hàng_tháng[[#This Row],[Mã sổ cái]],Chi_phí_phân_theo_khoản_mục[Ngày lập hóa đơn],\">=\"&N$3,Chi_phí_phân_theo_khoản_mục[Ngày lập hóa đơn],\"<=\"&N$4)+SUMIFS(Khác[Số tiền trên séc],Khác[Mã sổ cái],Tóm_tắt_chi_phí_hàng_tháng[[#This Row],[Mã sổ cái]],Khác[Ngày khởi tạo yêu cầu séc],\">=\"&DATEVALUE(\"1 \"&Tóm_tắt_chi_phí_hàng_tháng[[#Headers],[Tháng Mười Một]]&\" \"&_NĂM),Khác[Ngày khởi tạo yêu cầu séc],\"<=\"&N$4)","v":{"v":0,"d":"0.00 ₫"}},{"$f":"SUMIFS(Chi_phí_phân_theo_khoản_mục[Số tiền trên séc],Chi_phí_phân_theo_khoản_mục[Mã sổ cái],Tóm_tắt_chi_phí_hàng_tháng[[#This Row],[Mã sổ cái]],Chi_phí_phân_theo_khoản_mục[Ngày lập hóa đơn],\">=\"&O$3,Chi_phí_phân_theo_khoản_mục[Ngày lập hóa đơn],\"<=\"&O$4)+SUMIFS(Khác[Số tiền trên séc],Khác[Mã sổ cái],Tóm_tắt_chi_phí_hàng_tháng[[#This Row],[Mã sổ cái]],Khác[Ngày khởi tạo yêu cầu séc],\">=\"&DATEVALUE(\"1 \"&Tóm_tắt_chi_phí_hàng_tháng[[#Headers],[Tháng Mười Hai]]&\" \"&_NĂM),Khác[Ngày khởi tạo yêu cầu séc],\"<=\"&O$4)","v":{"v":0,"d":"0.00 ₫"}},{"$f":"SUM(Tóm_tắt_chi_phí_hàng_tháng[[#This Row],[Tháng Giêng]:[Tháng Mười Hai]])","v":{"v":0,"d":"0.00 ₫"}}]
[null,12000,"Khoản tài trợ",{"$f":"SUMIFS(Chi_phí_phân_theo_khoản_mục[Số tiền trên séc],Chi_phí_phân_theo_khoản_mục[Mã sổ cái],Tóm_tắt_chi_phí_hàng_tháng[[#This Row],[Mã sổ cái]],Chi_phí_phân_theo_khoản_mục[Ngày lập hóa đơn],\">=\"&D$3,Chi_phí_phân_theo_khoản_mục[Ngày lập hóa đơn],\"<=\"&D$4)+SUMIFS(Khác[Số tiền trên séc],Khác[Mã sổ cái],Tóm_tắt_chi_phí_hàng_tháng[[#This Row],[Mã sổ cái]],Khác[Ngày khởi tạo yêu cầu séc],\">=\"&DATEVALUE(\"1 \"&Tóm_tắt_chi_phí_hàng_tháng[[#Headers],[Tháng Giêng]]&\" \"&_NĂM),Khác[Ngày khởi tạo yêu cầu séc],\"<=\"&D$4)","v":{"v":0,"d":"0.00 ₫"}},{"$f":"SUMIFS(Chi_phí_phân_theo_khoản_mục[Số tiền trên séc],Chi_phí_phân_theo_khoản_mục[Mã sổ cái],Tóm_tắt_chi_phí_hàng_tháng[[#This Row],[Mã sổ cái]],Chi_phí_phân_theo_khoản_mục[Ngày lập hóa đơn],\">=\"&E$3,Chi_phí_phân_theo_khoản_mục[Ngày lập hóa đơn],\"<=\"&E$4)+SUMIFS(Khác[Số tiền trên séc],Khác[Mã sổ cái],Tóm_tắt_chi_phí_hàng_tháng[[#This Row],[Mã sổ cái]],Khác[Ngày khởi tạo yêu cầu séc],\">=\"&DATEVALUE(\"1 \"&Tóm_tắt_chi_phí_hàng_tháng[[#Headers],[Tháng Hai]]&\" \"&_NĂM),Khác[Ngày khởi tạo yêu cầu séc],\"<=\"&E$4)","v":{"v":0,"d":"0.00 ₫"}},{"$f":"SUMIFS(Chi_phí_phân_theo_khoản_mục[Số tiền trên séc],Chi_phí_phân_theo_khoản_mục[Mã sổ cái],Tóm_tắt_chi_phí_hàng_tháng[[#This Row],[Mã sổ cái]],Chi_phí_phân_theo_khoản_mục[Ngày lập hóa đơn],\">=\"&F$3,Chi_phí_phân_theo_khoản_mục[Ngày lập hóa đơn],\"<=\"&F$4)+SUMIFS(Khác[Số tiền trên séc],Khác[Mã sổ cái],Tóm_tắt_chi_phí_hàng_tháng[[#This Row],[Mã sổ cái]],Khác[Ngày khởi tạo yêu cầu séc],\">=\"&DATEVALUE(\"1 \"&Tóm_tắt_chi_phí_hàng_tháng[[#Headers],[Tháng Ba]]&\" \"&_NĂM),Khác[Ngày khởi tạo yêu cầu séc],\"<=\"&F$4)","v":{"v":0,"d":"0.00 ₫"}},{"$f":"SUMIFS(Chi_phí_phân_theo_khoản_mục[Số tiền trên séc],Chi_phí_phân_theo_khoản_mục[Mã sổ cái],Tóm_tắt_chi_phí_hàng_tháng[[#This Row],[Mã sổ cái]],Chi_phí_phân_theo_khoản_mục[Ngày lập hóa đơn],\">=\"&G$3,Chi_phí_phân_theo_khoản_mục[Ngày lập hóa đơn],\"<=\"&G$4)+SUMIFS(Khác[Số tiền trên séc],Khác[Mã sổ cái],Tóm_tắt_chi_phí_hàng_tháng[[#This Row],[Mã sổ cái]],Khác[Ngày khởi tạo yêu cầu séc],\">=\"&DATEVALUE(\"1 \"&Tóm_tắt_chi_phí_hàng_tháng[[#Headers],[Tháng Tư]]&\" \"&_NĂM),Khác[Ngày khởi tạo yêu cầu séc],\"<=\"&G$4)","v":{"v":0,"d":"0.00 ₫"}},{"$f":"SUMIFS(Chi_phí_phân_theo_khoản_mục[Số tiền trên séc],Chi_phí_phân_theo_khoản_mục[Mã sổ cái],Tóm_tắt_chi_phí_hàng_tháng[[#This Row],[Mã sổ cái]],Chi_phí_phân_theo_khoản_mục[Ngày lập hóa đơn],\">=\"&H$3,Chi_phí_phân_theo_khoản_mục[Ngày lập hóa đơn],\"<=\"&H$4)+SUMIFS(Khác[Số tiền trên séc],Khác[Mã sổ cái],Tóm_tắt_chi_phí_hàng_tháng[[#This Row],[Mã sổ cái]],Khác[Ngày khởi tạo yêu cầu séc],\">=\"&DATEVALUE(\"1 \"&Tóm_tắt_chi_phí_hàng_tháng[[#Headers],[Tháng Năm]]&\" \"&_NĂM),Khác[Ngày khởi tạo yêu cầu séc],\"<=\"&H$4)","v":{"v":0,"d":"0.00 ₫"}},{"$f":"SUMIFS(Chi_phí_phân_theo_khoản_mục[Số tiền trên séc],Chi_phí_phân_theo_khoản_mục[Mã sổ cái],Tóm_tắt_chi_phí_hàng_tháng[[#This Row],[Mã sổ cái]],Chi_phí_phân_theo_khoản_mục[Ngày lập hóa đơn],\">=\"&I$3,Chi_phí_phân_theo_khoản_mục[Ngày lập hóa đơn],\"<=\"&I$4)+SUMIFS(Khác[Số tiền trên séc],Khác[Mã sổ cái],Tóm_tắt_chi_phí_hàng_tháng[[#This Row],[Mã sổ cái]],Khác[Ngày khởi tạo yêu cầu séc],\">=\"&DATEVALUE(\"1 \"&Tóm_tắt_chi_phí_hàng_tháng[[#Headers],[Tháng Sáu]]&\" \"&_NĂM),Khác[Ngày khởi tạo yêu cầu séc],\"<=\"&I$4)","v":{"v":0,"d":"0.00 ₫"}},{"$f":"SUMIFS(Chi_phí_phân_theo_khoản_mục[Số tiền trên séc],Chi_phí_phân_theo_khoản_mục[Mã sổ cái],Tóm_tắt_chi_phí_hàng_tháng[[#This Row],[Mã sổ cái]],Chi_phí_phân_theo_khoản_mục[Ngày lập hóa đơn],\">=\"&J$3,Chi_phí_phân_theo_khoản_mục[Ngày lập hóa đơn],\"<=\"&J$4)+SUMIFS(Khác[Số tiền trên séc],Khác[Mã sổ cái],Tóm_tắt_chi_phí_hàng_tháng[[#This Row],[Mã sổ cái]],Khác[Ngày khởi tạo yêu cầu séc],\">=\"&DATEVALUE(\"1 \"&Tóm_tắt_chi_phí_hàng_tháng[[#Headers],[Tháng Bảy]]&\" \"&_NĂM),Khác[Ngày khởi tạo yêu cầu séc],\"<=\"&J$4)","v":{"v":0,"d":"0.00 ₫"}},{"$f":"SUMIFS(Chi_phí_phân_theo_khoản_mục[Số tiền trên séc],Chi_phí_phân_theo_khoản_mục[Mã sổ cái],Tóm_tắt_chi_phí_hàng_tháng[[#This Row],[Mã sổ cái]],Chi_phí_phân_theo_khoản_mục[Ngày lập hóa đơn],\">=\"&K$3,Chi_phí_phân_theo_khoản_mục[Ngày lập hóa đơn],\"<=\"&K$4)+SUMIFS(Khác[Số tiền trên séc],Khác[Mã sổ cái],Tóm_tắt_chi_phí_hàng_tháng[[#This Row],[Mã sổ cái]],Khác[Ngày khởi tạo yêu cầu séc],\">=\"&DATEVALUE(\"1 \"&Tóm_tắt_chi_phí_hàng_tháng[[#Headers],[Tháng Tám]]&\" \"&_NĂM),Khác[Ngày khởi tạo yêu cầu séc],\"<=\"&K$4)","v":{"v":0,"d":"0.00 ₫"}},{"$f":"SUMIFS(Chi_phí_phân_theo_khoản_mục[Số tiền trên séc],Chi_phí_phân_theo_khoản_mục[Mã sổ cái],Tóm_tắt_chi_phí_hàng_tháng[[#This Row],[Mã sổ cái]],Chi_phí_phân_theo_khoản_mục[Ngày lập hóa đơn],\">=\"&L$3,Chi_phí_phân_theo_khoản_mục[Ngày lập hóa đơn],\"<=\"&L$4)+SUMIFS(Khác[Số tiền trên séc],Khác[Mã sổ cái],Tóm_tắt_chi_phí_hàng_tháng[[#This Row],[Mã sổ cái]],Khác[Ngày khởi tạo yêu cầu séc],\">=\"&DATEVALUE(\"1 \"&Tóm_tắt_chi_phí_hàng_tháng[[#Headers],[Tháng Chín]]&\" \"&_NĂM),Khác[Ngày khởi tạo yêu cầu séc],\"<=\"&L$4)","v":{"v":0,"d":"0.00 ₫"}},{"$f":"SUMIFS(Chi_phí_phân_theo_khoản_mục[Số tiền trên séc],Chi_phí_phân_theo_khoản_mục[Mã sổ cái],Tóm_tắt_chi_phí_hàng_tháng[[#This Row],[Mã sổ cái]],Chi_phí_phân_theo_khoản_mục[Ngày lập hóa đơn],\">=\"&M$3,Chi_phí_phân_theo_khoản_mục[Ngày lập hóa đơn],\"<=\"&M$4)+SUMIFS(Khác[Số tiền trên séc],Khác[Mã sổ cái],Tóm_tắt_chi_phí_hàng_tháng[[#This Row],[Mã sổ cái]],Khác[Ngày khởi tạo yêu cầu séc],\">=\"&DATEVALUE(\"1 \"&Tóm_tắt_chi_phí_hàng_tháng[[#Headers],[Tháng Mười]]&\" \"&_NĂM),Khác[Ngày khởi tạo yêu cầu séc],\"<=\"&M$4)","v":{"v":0,"d":"0.00 ₫"}},{"$f":"SUMIFS(Chi_phí_phân_theo_khoản_mục[Số tiền trên séc],Chi_phí_phân_theo_khoản_mục[Mã sổ cái],Tóm_tắt_chi_phí_hàng_tháng[[#This Row],[Mã sổ cái]],Chi_phí_phân_theo_khoản_mục[Ngày lập hóa đơn],\">=\"&N$3,Chi_phí_phân_theo_khoản_mục[Ngày lập hóa đơn],\"<=\"&N$4)+SUMIFS(Khác[Số tiền trên séc],Khác[Mã sổ cái],Tóm_tắt_chi_phí_hàng_tháng[[#This Row],[Mã sổ cái]],Khác[Ngày khởi tạo yêu cầu séc],\">=\"&DATEVALUE(\"1 \"&Tóm_tắt_chi_phí_hàng_tháng[[#Headers],[Tháng Mười Một]]&\" \"&_NĂM),Khác[Ngày khởi tạo yêu cầu séc],\"<=\"&N$4)","v":{"v":0,"d":"0.00 ₫"}},{"$f":"SUMIFS(Chi_phí_phân_theo_khoản_mục[Số tiền trên séc],Chi_phí_phân_theo_khoản_mục[Mã sổ cái],Tóm_tắt_chi_phí_hàng_tháng[[#This Row],[Mã sổ cái]],Chi_phí_phân_theo_khoản_mục[Ngày lập hóa đơn],\">=\"&O$3,Chi_phí_phân_theo_khoản_mục[Ngày lập hóa đơn],\"<=\"&O$4)+SUMIFS(Khác[Số tiền trên séc],Khác[Mã sổ cái],Tóm_tắt_chi_phí_hàng_tháng[[#This Row],[Mã sổ cái]],Khác[Ngày khởi tạo yêu cầu séc],\">=\"&DATEVALUE(\"1 \"&Tóm_tắt_chi_phí_hàng_tháng[[#Headers],[Tháng Mười Hai]]&\" \"&_NĂM),Khác[Ngày khởi tạo yêu cầu séc],\"<=\"&O$4)","v":{"v":0,"d":"0.00 ₫"}},{"$f":"SUM(Tóm_tắt_chi_phí_hàng_tháng[[#This Row],[Tháng Giêng]:[Tháng Mười Hai]])","v":{"v":0,"d":"0.00 ₫"}}]
[null,"Tổng",null,{"$f":"SUBTOTAL(109,Tóm_tắt_chi_phí_hàng_tháng[Tháng Giêng])","v":{"v":0,"d":"0.00 ₫"}},{"$f":"SUBTOTAL(109,Tóm_tắt_chi_phí_hàng_tháng[Tháng Hai])","v":{"v":0,"d":"0.00 ₫"}},{"$f":"SUBTOTAL(109,Tóm_tắt_chi_phí_hàng_tháng[Tháng Ba])","v":{"v":0,"d":"0.00 ₫"}},{"$f":"SUBTOTAL(109,Tóm_tắt_chi_phí_hàng_tháng[Tháng Tư])","v":{"v":0,"d":"0.00 ₫"}},{"$f":"SUBTOTAL(109,Tóm_tắt_chi_phí_hàng_tháng[Tháng Năm])","v":{"v":0,"d":"0.00 ₫"}},{"$f":"SUBTOTAL(109,Tóm_tắt_chi_phí_hàng_tháng[Tháng Sáu])","v":{"v":0,"d":"0.00 ₫"}},{"$f":"SUBTOTAL(109,Tóm_tắt_chi_phí_hàng_tháng[Tháng Bảy])","v":{"v":0,"d":"0.00 ₫"}},{"$f":"SUBTOTAL(109,Tóm_tắt_chi_phí_hàng_tháng[Tháng Tám])","v":{"v":0,"d":"0.00 ₫"}},{"$f":"SUBTOTAL(109,Tóm_tắt_chi_phí_hàng_tháng[Tháng Chín])","v":{"v":0,"d":"0.00 ₫"}},{"$f":"SUBTOTAL(109,Tóm_tắt_chi_phí_hàng_tháng[Tháng Mười])","v":{"v":0,"d":"0.00 ₫"}},{"$f":"SUBTOTAL(109,Tóm_tắt_chi_phí_hàng_tháng[Tháng Mười Một])","v":{"v":0,"d":"0.00 ₫"}},{"$f":"SUBTOTAL(109,Tóm_tắt_chi_phí_hàng_tháng[Tháng Mười Hai])","v":{"v":0,"d":"0.00 ₫"}},{"$f":"SUBTOTAL(109,Tóm_tắt_chi_phí_hàng_tháng[Tổng])","v":{"v":0,"d":"0.00 ₫"}}]

{"sheet":"CHI PHÍ PHÂN THEO KHOẢN MỤC","index":2,"n_rows":6,"n_cols":10,"rows_kept":6,"merged":[[1,1,1,9],[2,1,2,5],[2,6,2,9]]}
[]
[null,"CHI PHÍ PHÂN THEO KHOẢN MỤC"]
[]
[null,"Mã sổ cái","Ngày lập hóa đơn","Số hóa đơn","Người yêu cầu","Số tiền trên séc","Người hưởng","Mục đích sử dụng séc","Phương pháp phân phối","Ngày lưu hồ sơ"]
[null,1000,"Ngày",100,"Andy Teal",{"v":750.75,"d":"750.75 ₫"},"Consolidated Messenger ","Bưu phẩm","Thư","Ngày"]
[null,7000,"Ngày",101,"Robert Walters",{"v":2500,"d":"2,500.00 ₫"},"A. Datum Corporation ","2 máy tính để bàn","Tín dụng","Ngày"]

{"sheet":"KHOẢN TỪ THIỆN & KHOẢN TÀI TRỢ","index":3,"n_rows":6,"n_cols":12,"rows_kept":6,"merged":[[1,1,1,11],[2,1,2,5],[2,6,2,11]]}
[]
[null,"KHOẢN TỪ THIỆN & KHOẢN TÀI TRỢ"]
[]
[null,"Mã sổ cái","Ngày khởi tạo yêu cầu séc","Người yêu cầu","Số tiền trên séc","Số tiền đóng góp năm trước","Người hưởng","Sử dụng cho","Chấp thuận bởi","Danh mục","Phương pháp phân phối","Ngày lưu hồ sơ"]
[null,12000,"Ngày","Susan W. Eaton",{"v":1000,"d":"1,000.00 ₫"},{"v":12,"d":"12.00 ₫"},"School of Fine Art ","Học bổng","Kim Ralls","Nghệ thuật","Séc","Ngày"]
[null,11000,"Ngày","Susan W. Eaton",{"v":2500,"d":"2,500.00 ₫"},{"v":0,"d":"0.00 ₫"},"Wingtip Toys ","Cộng đồng","Kathie Flood","Cộng đồng","Séc","Ngày"]